{"text_format":"1","workbook":"xlsx","n_sheets":8,"sheets":["Instructions","1.Défis et opportunités","2.Sélectionner les catégories d","3.Examiner les services de gest","3.Révision des services I4.0 (o","3.Résumé","4.Services de portée","5.Plan d’action"],"not_rendered":{"charts":0,"images":14,"macros":1,"external_links":0,"defined_names":21,"comments":0,"pivot_tables":2},"unopened":[],"bounds":{"document_bytes":16777216,"sheet_cells":100000,"rows_first":2000,"rows_last":500,"rows_between":2000,"halvings":0,"cell_chars":16384,"cell_head_chars":4096},"cells_cut":0,"cells_raw":0,"read":"whole","date_system":"1900"}

{"sheet":"Instructions","index":0,"n_rows":154,"n_cols":72,"rows_kept":154,"cut":false,"hidden":false,"merged":[[57,54,58,63],[57,64,58,70],[57,71,58,79],[59,54,60,63],[59,64,60,70],[59,71,60,79],[68,2,68,13],[68,17,80,50],[69,54,70,63],[69,64,70,70],[73,64,74,70],[73,71,74,79],[75,54,76,63],[71,64,72,70],[71,71,72,79],[73,54,74,63],[61,64,62,70],[61,71,62,79],[63,54,64,63],[63,64,64,70],[63,71,64,79],[65,54,66,63],[65,64,66,70],[65,71,66,79],[3,1,3,80],[5,1,5,80],[7,1,7,80],[10,1,10,80],[13,1,13,80],[15,1,16,80],[22,2,22,13],[22,54,22,79],[17,54,17,79],[18,54,20,79],[22,17,22,50],[9,1,9,80],[11,1,11,80],[24,2,24,13],[24,17,33,50],[24,54,25,63],[24,64,25,70],[24,71,25,79],[25,2,33,13],[32,54,33,63],[32,64,33,70],[32,71,33,79],[26,54,27,63],[26,64,27,70],[26,71,27,79],[28,54,29,63],[28,64,29,70],[28,71,29,79],[30,54,31,63],[30,64,31,70],[30,71,31,79],[46,2,46,13],[46,17,55,50],[46,54,47,63],[46,64,47,70],[46,71,47,79],[48,54,49,63],[48,64,49,70],[48,71,49,79],[50,54,51,63],[50,64,51,70],[50,71,51,79],[54,54,55,63],[54,64,55,70],[54,71,55,79],[52,54,53,63],[52,64,53,70],[52,71,53,79],[115,61,115,79],[113,23,113,40],[114,23,114,40],[115,23,115,40],[113,42,113,59],[115,42,115,59],[77,54,78,63],[77,64,78,70],[77,71,78,79],[83,1,83,80],[69,2,80,13],[71,54,72,63],[75,64,76,70],[75,71,76,79],[69,71,70,79],[147,1,149,80],[87,12,95,42],[87,46,95,80],[85,12,85,46],[85,48,85,79],[143,1,143,14],[113,2,113,21],[114,2,114,21],[115,2,115,21],[113,61,113,79],[114,61,114,79],[97,1,97,80],[99,3,99,13],[108,3,108,13],[99,20,99,34],[108,19,108,33],[108,45,108,55],[99,45,100,55],[107,45,107,55],[108,67,108,77],[99,67,100,77],[140,1,140,80],[126,1,126,80],[111,1,111,80],[35,2,35,13],[35,17,44,50],[58,2,66,13],[36,2,44,13],[35,54,36,63],[35,64,36,70],[35,71,36,79],[37,54,38,63],[37,64,38,70],[37,71,38,79],[39,54,40,63],[39,64,40,70],[39,71,40,79],[41,54,42,63],[41,64,42,70],[41,71,42,79],[43,54,44,63],[43,64,44,70],[43,71,44,79],[47,2,51,13],[52,2,55,13],[57,2,57,13],[57,17,66,50],[61,54,62,63]]}
[null,"Outil de services de gestion de PEI de l’ONUDI (V1)"]
[null,"OUTIL DE GESTION de PEI : INSTRUCTIONS"]
[]
[null,"RAISON D’ÊTRE DE L’OUTIL"]
[]
[null,"Dans de nombreux parcs industriels, la direction du parc fournit les services \"traditionnels\" à ses locataires, tels que la location/vente de terrains industriels aux entreprises locataires, la facturation de l’électricité et de l’eau, l’entretien des routes, des clôtures et des immeubles de bureaux à l’intérieur du parc, ainsi que des services de sécurité de base. Cependant, il existe de nombreux services à valeur ajoutée que la gestion des parcs pourrait fournir afin de.. : \n• Aider les entreprises locataires à améliorer leurs performances économiques, environnementales et sociales ;\n• Réduire les risques du parc et des entreprises, en soulignant que les risques environnementaux et sociaux sont des risques commerciaux ;\n• Créer un parc industriel plus efficace en termes de ressources et de coûts, plus compétitif et plus attrayant pour les investisseurs ;\n• Permettre aux entreprises locataires de se concentrer sur leurs activités principales et de réaliser des économies grâce à des synergies de services.\n\nEn outre, l’industrie 4.0 fournit de nouvelles solutions pour la chaîne de valeur de la production grâce au développement des TIC (par exemple, l’internet des objets) et à des solutions d’automatisation intelligentes qui sont applicables à la gestion des parcs industriels et aux entreprises locataires. L’industrie 4.0 aura une influence considérable sur la conception et l’exploitation des processus industriels et des parcs industriels."]
[]
[null,"OBJECTIFS DE L’OUTIL"]
[]
[null,"L’objectif de cet outil est de renforcer et d’améliorer les services fournis par la gestion du parc aux entreprises locataires, et ainsi d’augmenter le « rapport qualité-prix » fourni par la gestion du parc aux entreprises locataires et de sécuriser/accroître les revenus de l’entité de gestion du parc. Cet outil aide les entités de gestion des parcs industriels et les entreprises locataires à examiner, hiérarchiser, délimiter et planifier des services adaptés et à valeur ajoutée pour leur parc et leurs entreprises locataires. "]
[null,"En outre, l’outil aide les parcs industriels à se rapprocher du cadre international pour les parcs éco-industriels (UNIDO, WBG, GIZ)."]
[null,"Étant donné que l’industrie 4.0 offre des opportunités pour la gestion des parcs d’étendre leurs services aux entreprises locataires afin d’accroître leur compétitivité et leur efficacité, cet outil comprend des feuilles de travail facultatives sur des services spécifiques de l’industrie 4.0 qui pourraient être envisagés par la gestion des parcs."]
[]
[null,"ÉTAPES ET INSTRUCTIONS"]
[]
[null,"L’outil est conçu pour être utilisé par les entités de gestion des parcs en étroite collaboration avec leurs entreprises locataires, le cas échéant avec l’aide de prestataires de services (par exemple, les centres nationaux de production plus propre, les sociétés de conseil) et/ou d’agences de développement internationales (par exemple, par des membres du personnel de l’ONUDI)."]
[]
[null,null,null,null,null,null,null,null,null,null,null,null,null,null,null,null,null,null,null,null,null,null,null,null,null,null,null,null,null,null,null,null,null,null,null,null,null,null,null,null,null,null,null,null,null,null,null,null,null,null,null,null,null,null,"Lieu où les étapes peuvent être réalisées"]
[null,null,null,null,null,null,null,null,null,null,null,null,null,null,null,null,null,null,null,null,null,null,null,null,null,null,null,null,null,null,null,null,null,null,null,null,null,null,null,null,null,null,null,null,null,null,null,null,null,null,null,null,null,null,"Idéalement, toutes les étapes se déroulent dans les bureaux de la direction du parc industriel ou dans un atelier avec la direction du parc et les entreprises locataires. Si nécessaire, les étapes peuvent également être effectuées en ligne par le biais d’un partage d’écran/de fichiers."]
[]
[]
[]
[null,null,"ÉTAPES DANS L’OUTIL",null,null,null,null,null,null,null,null,null,null,null,null,null,null,"INSTRUCTIONS DÉTAILLÉES",null,null,null,null,null,null,null,null,null,null,null,null,null,null,null,null,null,null,null,null,null,null,null,null,null,null,null,null,null,null,null,null,null,null,null,null,"DURÉE ESTIMÉE DE RÉALISATION DE L’OUTIL"]
[]
[null,null,"ÉTAPE 1",null,null,null,null,null,null,null,null,null,null,null,null,null,null,"Cette étape permet à la direction du parc et aux entreprises locataires de résumer les principaux défis, opportunités et questions stratégiques auxquels leur parc industriel est confronté. Il s’agit d’une première étape, car les services à valeur ajoutée fournis par les entités de gestion du parc répondent idéalement aux défis et opportunités communs sous-jacents auxquels sont confrontés le parc industriel et les entreprises locataires.\n\nLes défis et les opportunités sont examinés d’un point de vue économique, environnemental et social.",null,null,null,null,null,null,null,null,null,null,null,null,null,null,null,null,null,null,null,null,null,null,null,null,null,null,null,null,null,null,null,null,null,null,null,null,"L’investissement en temps dépend du niveau de détail souhaité",null,null,null,null,null,null,null,null,null,"Analyse simple de base \n ",null,null,null,null,null,null,"Analyse détaillée \n "]
[null,null,"Résumer les principaux défis, opportunités et questions stratégiques auxquels le parc industriel est confronté"]
[null,null,null,null,null,null,null,null,null,null,null,null,null,null,null,null,null,null,null,null,null,null,null,null,null,null,null,null,null,null,null,null,null,null,null,null,null,null,null,null,null,null,null,null,null,null,null,null,null,null,null,null,null,null,"Gestion d’un parc industriel",null,null,null,null,null,null,null,null,null,"0,25 jour-personne",null,null,null,null,null,null,"0,5 jour-personne"]
[]
[null,null,null,null,null,null,null,null,null,null,null,null,null,null,null,null,null,null,null,null,null,null,null,null,null,null,null,null,null,null,null,null,null,null,null,null,null,null,null,null,null,null,null,null,null,null,null,null,null,null,null,null,null,null,"Par entreprise locataire",null,null,null,null,null,null,null,null,null,"0,1 jour-personne",null,null,null,null,null,null,"0,25 jour-personne"]
[]
[null,null,null,null,null,null,null,null,null,null,null,null,null,null,null,null,null,null,null,null,null,null,null,null,null,null,null,null,null,null,null,null,null,null,null,null,null,null,null,null,null,null,null,null,null,null,null,null,null,null,null,null,null,null,"Expert / consultant PEI",null,null,null,null,null,null,null,null,null,"0,5 jour-personne",null,null,null,null,null,null,"1 jour-personne"]
[]
[null,null,null,null,null,null,null,null,null,null,null,null,null,null,null,null,null,null,null,null,null,null,null,null,null,null,null,null,null,null,null,null,null,null,null,null,null,null,null,null,null,null,null,null,null,null,null,null,null,null,null,null,null,null,"Gestionnaire/coordinateur d’une agence de développement",null,null,null,null,null,null,null,null,null,"0,1 jour-personne",null,null,null,null,null,null,"0,25 jour-personne"]
[]
[]
[null,null,"ÉTAPE 2",null,null,null,null,null,null,null,null,null,null,null,null,null,null,"L’objectif de cette étape est de procéder à un « examen rapide » de toutes les catégories de services incluses dans l’outil et de sélectionner les catégories à examiner en détail dans l’étape suivante de l’outil. Cette étape permettra une utilisation efficace de l’outil dans les étapes suivantes.\n\nCette étape inclut également les catégories de services facultatives de l’industrie 4.0.",null,null,null,null,null,null,null,null,null,null,null,null,null,null,null,null,null,null,null,null,null,null,null,null,null,null,null,null,null,null,null,null,null,null,null,null,"L’investissement en temps dépend du niveau de détail souhaité",null,null,null,null,null,null,null,null,null,"Analyse simple de base \n ",null,null,null,null,null,null,"Analyse détaillée \n "]
[null,null,"Sélectionner les catégories de services à examiner en détail"]
[null,null,null,null,null,null,null,null,null,null,null,null,null,null,null,null,null,null,null,null,null,null,null,null,null,null,null,null,null,null,null,null,null,null,null,null,null,null,null,null,null,null,null,null,null,null,null,null,null,null,null,null,null,null,"Gestion d’un parc industriel",null,null,null,null,null,null,null,null,null,"0,1 jour-personne",null,null,null,null,null,null,"0,25 jour-personne"]
[]
[null,null,null,null,null,null,null,null,null,null,null,null,null,null,null,null,null,null,null,null,null,null,null,null,null,null,null,null,null,null,null,null,null,null,null,null,null,null,null,null,null,null,null,null,null,null,null,null,null,null,null,null,null,null,"Par entreprise locataire",null,null,null,null,null,null,null,null,null,"0,1 jour-personne",null,null,null,null,null,null,"0,25 jour-personne"]
[]
[null,null,null,null,null,null,null,null,null,null,null,null,null,null,null,null,null,null,null,null,null,null,null,null,null,null,null,null,null,null,null,null,null,null,null,null,null,null,null,null,null,null,null,null,null,null,null,null,null,null,null,null,null,null,"Expert / consultant PEI",null,null,null,null,null,null,null,null,null,"0,25 jour-personne",null,null,null,null,null,null,"0,5 jour-personne"]
[]
[null,null,null,null,null,null,null,null,null,null,null,null,null,null,null,null,null,null,null,null,null,null,null,null,null,null,null,null,null,null,null,null,null,null,null,null,null,null,null,null,null,null,null,null,null,null,null,null,null,null,null,null,null,null,"Gestionnaire/coordinateur d’une agence de développement",null,null,null,null,null,null,null,null,null,"0,1 jour-personne",null,null,null,null,null,null,"0,25 jour-personne"]
[]
[]
[null,null,"ÉTAPE 3",null,null,null,null,null,null,null,null,null,null,null,null,null,null,"Cette étape permet à la direction du parc et aux entreprises locataires de passer en revue une longue liste de services à valeur ajoutée catégorisés et de définir des services spécifiques pour le parc industriel.\n\nLes services à valeur ajoutée sont classés par ordre de priorité en fonction de leur faisabilité, de leurs avantages et de l’intérêt qu’ils suscitent auprès de la direction du parc et des entreprises locataires.\n\nLes services à valeur ajoutée qui sont les plus réalisables, qui présentent les avantages les plus importants et qui suscitent le plus d’intérêt de la part de la direction du parc et des entreprises sont classés par ordre de priorité et font l’objet d’une recommandation d’action à court terme.",null,null,null,null,null,null,null,null,null,null,null,null,null,null,null,null,null,null,null,null,null,null,null,null,null,null,null,null,null,null,null,null,null,null,null,null,"L’investissement en temps dépend du niveau de détail souhaité",null,null,null,null,null,null,null,null,null,"Analyse simple de base \n ",null,null,null,null,null,null,"Analyse détaillée \n "]
[null,null,"Examiner et classer par ordre de priorité les services à valeur ajoutée potentiels de la gestion des parcs"]
[null,null,null,null,null,null,null,null,null,null,null,null,null,null,null,null,null,null,null,null,null,null,null,null,null,null,null,null,null,null,null,null,null,null,null,null,null,null,null,null,null,null,null,null,null,null,null,null,null,null,null,null,null,null,"Gestion d’un parc industriel",null,null,null,null,null,null,null,null,null,"0,5 jour-personne",null,null,null,null,null,null,"1 jour-personne"]
[]
[null,null,null,null,null,null,null,null,null,null,null,null,null,null,null,null,null,null,null,null,null,null,null,null,null,null,null,null,null,null,null,null,null,null,null,null,null,null,null,null,null,null,null,null,null,null,null,null,null,null,null,null,null,null,"Par entreprise locataire",null,null,null,null,null,null,null,null,null,"0,25 jour-personne",null,null,null,null,null,null,"0,5 jour-personne"]
[]
[null,null,null,null,null,null,null,null,null,null,null,null,null,null,null,null,null,null,null,null,null,null,null,null,null,null,null,null,null,null,null,null,null,null,null,null,null,null,null,null,null,null,null,null,null,null,null,null,null,null,null,null,null,null,"Expert / consultant PEI",null,null,null,null,null,null,null,null,null,"1 jour-personne",null,null,null,null,null,null,"2 jours-personnes"]
[]
[null,null,null,null,null,null,null,null,null,null,null,null,null,null,null,null,null,null,null,null,null,null,null,null,null,null,null,null,null,null,null,null,null,null,null,null,null,null,null,null,null,null,null,null,null,null,null,null,null,null,null,null,null,null,"Gestionnaire/coordinateur d’une agence de développement",null,null,null,null,null,null,null,null,null,"0,25 jour-personne",null,null,null,null,null,null,"0,5 jour-personne"]
[]
[]
[null,null,"ÉTAPE 4",null,null,null,null,null,null,null,null,null,null,null,null,null,null,"Cette étape permet à la direction du parc et aux entreprises locataires de définir les services à valeur ajoutée prioritaires sur les points suivants :\n\n• Domaines et caractéristiques spécifiques à inclure dans les services à valeur ajoutée\n• Options pour le recouvrement des coûts et/ou le partage des bénéfices\n• Entreprises locataires ciblées\n• Facteurs de réussite pour développer et mettre en œuvre les services à valeur ajoutée\n• Défis potentiels et moyens de les relever",null,null,null,null,null,null,null,null,null,null,null,null,null,null,null,null,null,null,null,null,null,null,null,null,null,null,null,null,null,null,null,null,null,null,null,null,"L’investissement en temps dépend du niveau de détail souhaité",null,null,null,null,null,null,null,null,null,"Analyse simple de base \n ",null,null,null,null,null,null,"Analyse détaillée \n "]
[null,null,"Définir les services à valeur ajoutée prioritaires de la gestion des parcs"]
[null,null,null,null,null,null,null,null,null,null,null,null,null,null,null,null,null,null,null,null,null,null,null,null,null,null,null,null,null,null,null,null,null,null,null,null,null,null,null,null,null,null,null,null,null,null,null,null,null,null,null,null,null,null,"Gestion d’un parc industriel",null,null,null,null,null,null,null,null,null,"1 jour-personne",null,null,null,null,null,null,"2 jours-personnes"]
[]
[null,null,null,null,null,null,null,null,null,null,null,null,null,null,null,null,null,null,null,null,null,null,null,null,null,null,null,null,null,null,null,null,null,null,null,null,null,null,null,null,null,null,null,null,null,null,null,null,null,null,null,null,null,null,"Par entreprise locataire",null,null,null,null,null,null,null,null,null,"0,25 jour-personne",null,null,null,null,null,null,"0,5 jour-personne"]
[]
[null,null,null,null,null,null,null,null,null,null,null,null,null,null,null,null,null,null,null,null,null,null,null,null,null,null,null,null,null,null,null,null,null,null,null,null,null,null,null,null,null,null,null,null,null,null,null,null,null,null,null,null,null,null,"Expert / consultant PEI",null,null,null,null,null,null,null,null,null,"2 jours-personnes",null,null,null,null,null,null,"3 jours-personnes"]
[]
[null,null,null,null,null,null,null,null,null,null,null,null,null,null,null,null,null,null,null,null,null,null,null,null,null,null,null,null,null,null,null,null,null,null,null,null,null,null,null,null,null,null,null,null,null,null,null,null,null,null,null,null,null,null,"Gestionnaire/coordinateur d’une agence de développement",null,null,null,null,null,null,null,null,null,"0,25 jour-personne",null,null,null,null,null,null,"0,5 jour-personne"]
[]
[]
[null,null,"ÉTAPE 5",null,null,null,null,null,null,null,null,null,null,null,null,null,null,"Après avoir défini les services à valeur ajoutée prioritaires, cette étape guide la direction du parc et les entreprises locataires dans l’élaboration d’un plan pratique avec des actions à court terme pour développer et mettre en œuvre les services sélectionnés.\n\nLe modèle de plan d’action fourni dans cet outil couvre les éléments suivants :\n• Actions clés à court terme\n• Rôle principal\n• Rôle de soutien\n• Chronologie\n• Commentaires et état d’avancement des actions\n\nSachant que la direction du parc peut déjà avoir mis en place des systèmes pour gérer ses activités, il est envisagé d’adapter le plan d’action des services à valeur ajoutée prioritaires aux systèmes existants."]
[null,null,"Plan d’action pour les services à valeur ajoutée prioritaires de la gestion des parcs",null,null,null,null,null,null,null,null,null,null,null,null,null,null,null,null,null,null,null,null,null,null,null,null,null,null,null,null,null,null,null,null,null,null,null,null,null,null,null,null,null,null,null,null,null,null,null,null,null,null,null,"L’investissement en temps dépend du niveau de détail souhaité",null,null,null,null,null,null,null,null,null,"Analyse simple de base \n ",null,null,null,null,null,null,"Analyse détaillée \n "]
[]
[null,null,null,null,null,null,null,null,null,null,null,null,null,null,null,null,null,null,null,null,null,null,null,null,null,null,null,null,null,null,null,null,null,null,null,null,null,null,null,null,null,null,null,null,null,null,null,null,null,null,null,null,null,null,"Gestion d’un parc industriel",null,null,null,null,null,null,null,null,null,"1 jour-personne",null,null,null,null,null,null,"2 jours-personnes"]
[]
[null,null,null,null,null,null,null,null,null,null,null,null,null,null,null,null,null,null,null,null,null,null,null,null,null,null,null,null,null,null,null,null,null,null,null,null,null,null,null,null,null,null,null,null,null,null,null,null,null,null,null,null,null,null,"Par entreprise locataire",null,null,null,null,null,null,null,null,null,"0,25 jour-personne",null,null,null,null,null,null,"0,5 jour-personne"]
[]
[null,null,null,null,null,null,null,null,null,null,null,null,null,null,null,null,null,null,null,null,null,null,null,null,null,null,null,null,null,null,null,null,null,null,null,null,null,null,null,null,null,null,null,null,null,null,null,null,null,null,null,null,null,null,"Expert / consultant PEI",null,null,null,null,null,null,null,null,null,"1 jour-personne",null,null,null,null,null,null,"2 jours-personnes"]
[]
[null,null,null,null,null,null,null,null,null,null,null,null,null,null,null,null,null,null,null,null,null,null,null,null,null,null,null,null,null,null,null,null,null,null,null,null,null,null,null,null,null,null,null,null,null,null,null,null,null,null,null,null,null,null,"Gestionnaire/coordinateur d’une agence de développement",null,null,null,null,null,null,null,null,null,"0,25 jour-personne",null,null,null,null,null,null,"0,5 jour-personne"]
[]
[]
[]
[]
[]
[null,"EXEMPLE D’APPLICATION PRATIQUE"]
[]
[null,null,null,null,null,null,null,null,null,null,null,null,"Programmes mondiaux de production propre et économe en ressources et de parcs éco-industriels",null,null,null,null,null,null,null,null,null,null,null,null,null,null,null,null,null,null,null,null,null,null,null,null,null,null,null,null,null,null,null,null,null,null,null,"Enseignements tirés des services de gestion des parcs à valeur ajoutée"]
[]
[null,null,null,null,null,null,null,null,null,null,null,null,"Cet outil est basé sur les expériences pratiques menées à ce jour avec les gestionnaires et les entreprises locataires de parcs industriels dans plusieurs pays (par exemple, la Chine, la Colombie, l’Égypte, l’Inde, l’Indonésie, le Maroc, le Pérou, l’Afrique du Sud, l’Ukraine et le Viêt Nam) dans le cadre du Programme mondial pour une production propre et économe en ressources (20012 - 2018) et du Programme mondial pour les parcs éco-industriels (2019-2023).\n\nVous pouvez télécharger les détails des réalisations et les principales conclusions du travail sur les parcs éco-industriels du programme RECP mondial en cliquant sur l’icône de la publication à gauche.",null,null,null,null,null,null,null,null,null,null,null,null,null,null,null,null,null,null,null,null,null,null,null,null,null,null,null,null,null,null,null,null,null,"• Dans de nombreux cas, les services à valeur ajoutée offerts par la gestion du parc à ses entreprises locataires sont des opportunités de gains rapides pour un parc industriel qui ne nécessitent souvent pas d’investissement financier important.\n\n• Le leadership de la direction du parc dans la coordination et la facilitation des services à valeur ajoutée avec les entreprises locataires et les parties prenantes externes est un facteur de réussite essentiel.\n\n• Il existe de nombreux types de services à valeur ajoutée qui peuvent être fournis par la gestion du parc. Il est essentiel d’identifier les services les plus prometteurs qui présentent le plus d’avantages, de faisabilité et d’intérêt pour les gestionnaires de parcs et les entreprises locataires. Une approche progressive est recommandée.\n"]
[]
[]
[]
[]
[]
[]
[]
[]
[]
[null,"BONNES PRATIQUES INTERNATIONALES DE SERVICES À VALEUR AJOUTÉE FOURNIS PAR LA GESTION DES PARCS INDUSTRIELS"]
[]
[null,null,null,"EcoPlus, Autriche",null,null,null,null,null,null,null,null,null,null,null,null,null,null,null,null,"Conseil des industries de Kwinana, Australie",null,null,null,null,null,null,null,null,null,null,null,null,null,null,null,null,null,null,null,null,null,null,null,null,"Kalundborg Symbiosis / Centre de symbiose du Danemark",null,null,null,null,null,null,null,null,null,null,null,null,null,null,null,null,null,null,null,null,null,"Société du complexe industriel de Corée (KICOX) "]
[]
[]
[]
[]
[]
[]
[]
[null,null,null,null,null,null,null,null,null,null,null,null,null,null,null,null,null,null,null,null,null,null,null,null,null,null,null,null,null,null,null,null,null,null,null,null,null,null,null,null,null,null,null,null,null,"http://www.symbiosis.dk/en/"]
[null,null,null,"https://www.ecoplus.at/en/",null,null,null,null,null,null,null,null,null,null,null,null,null,null,null,"https://kic.org.au/",null,null,null,null,null,null,null,null,null,null,null,null,null,null,null,null,null,null,null,null,null,null,null,null,null,"https://symbiosecenter.dk/en/",null,null,null,null,null,null,null,null,null,null,null,null,null,null,null,null,null,null,null,null,null,"http://www.kicox.or.kr/"]
[]
[]
[null,"AUTRES LECTURES"]
[]
[null,null,"Où trouver plus d’informations sur les outils PEI de l’ONUDI ?",null,null,null,null,null,null,null,null,null,null,null,null,null,null,null,null,null,null,null,null,"Qu’entend-on par parcs éco-industriels ?",null,null,null,null,null,null,null,null,null,null,null,null,null,null,null,null,null,null,"Comment rendre le cadre de PEI opérationnel ?",null,null,null,null,null,null,null,null,null,null,null,null,null,null,null,null,null,null,"Comment mettre en place des parcs éco-industriels ?"]
[null,null,"Manuel pour la boîte à outils de l’ONUDI sur les parcs éco-industriels",null,null,null,null,null,null,null,null,null,null,null,null,null,null,null,null,null,null,null,null,"Un cadre international pour les PEI",null,null,null,null,null,null,null,null,null,null,null,null,null,null,null,null,null,null,"Manuel du praticien pour les parcs éco-industriels ",null,null,null,null,null,null,null,null,null,null,null,null,null,null,null,null,null,null,"Manuel de mise en œuvre pour les parcs éco-industriels"]
[null,null,"(ONUDI, 2019)",null,null,null,null,null,null,null,null,null,null,null,null,null,null,null,null,null,null,null,null,"(ONUDI, Groupe de la Banque mondiale, GIZ, 2017)",null,null,null,null,null,null,null,null,null,null,null,null,null,null,null,null,null,null,"(ONUDI, Groupe de la Banque mondiale, GIZ et MOTIE 2018)",null,null,null,null,null,null,null,null,null,null,null,null,null,null,null,null,null,null," (ONUDI 2017)"]
[]
[]
[]
[]
[]
[]
[]
[]
[]
[]
[null,"LISTE DES ACRONYMES"]
[]
[null,"PEI",null,null,null,null,"Parc éco-industriel",null,null,null,null,null,null,null,null,null,null,null,null,null,null,null,null,null,null,null,null,null,null,null,null,null,null,null,null,null,null,null,null,null,null,null,"IA",null,null,null,null,"Intelligence artificielle"]
[null,"GES",null,null,null,null,"Gaz à effet de serre",null,null,null,null,null,null,null,null,null,null,null,null,null,null,null,null,null,null,null,null,null,null,null,null,null,null,null,null,null,null,null,null,null,null,null,"AR",null,null,null,null,"Réalité augmentée"]
[null,"GIZ",null,null,null,null,"Deutsche Gesellschaft für Internationale Zusammenarbeit GmbH",null,null,null,null,null,null,null,null,null,null,null,null,null,null,null,null,null,null,null,null,null,null,null,null,null,null,null,null,null,null,null,null,null,null,null,"IdO",null,null,null,null,"Internet des objets"]
[null,"OHS",null,null,null,null,"Santé et sécurité au travail",null,null,null,null,null,null,null,null,null,null,null,null,null,null,null,null,null,null,null,null,null,null,null,null,null,null,null,null,null,null,null,null,null,null,null,"MR",null,null,null,null,"Réalité mixte"]
[null,"RECP",null,null,null,null,"Une production plus efficace et plus propre",null,null,null,null,null,null,null,null,null,null,null,null,null,null,null,null,null,null,null,null,null,null,null,null,null,null,null,null,null,null,null,null,null,null,null,"M2M",null,null,null,null,"Machine à machine"]
[null,"SECO",null,null,null,null,"Secrétariat d’État à l’économie de la Suisse",null,null,null,null,null,null,null,null,null,null,null,null,null,null,null,null,null,null,null,null,null,null,null,null,null,null,null,null,null,null,null,null,null,null,null,"VR",null,null,null,null,"Réalité virtuelle"]
[null,"PME",null,null,null,null,"Petites et moyennes entreprises (< 250 employés)"]
[null,"ONUDI",null,null,null,null,"Organisation des Nations unies pour le développement industriel"]
[null,"GBM",null,null,null,null,"Groupe de la Banque mondiale"]
[null,"STEP",null,null,null,null,"Station d’épuration des eaux usées"]
[]
[]
[null,"QUESTIONS OU COMMENTAIRES"]
[]
[null,"Pour toute question, commentaire ou demande d’information, veuillez envoyer un courriel :"]
[]
[]
[null,"Version de l’outil : V2, avril 2022"]
[]
[null,"Clause de non-responsabilité : L’ONUDI ne peut être tenue responsable de l’application de cet outil et de ses résultats. La responsabilité de l’application de l’outil incombe exclusivement à l’utilisateur de l’outil. Les appellations employées dans ce document et la présentation des données qui y figurent n’impliquent de la part de l’ONUDI et de ses organes directeurs aucune prise de position quant au statut juridique ou au stade de développement des pays, territoires, villes ou zones ou de leurs autorités, ni quant au tracé de leurs frontières ou limites. Les opinions exprimées dans ce document sont celles des auteurs et ne reflètent pas nécessairement celles de l’ONUDI et de ses organes directeurs. "]
[]
[]
[]
[null,"Remerciements : "]
[null,"L’auteur principal de cet outil de service de gestion de PEI est Dick van Beers (consultant de l’ONUDI). Klaus Tyrkko (conseiller technique en chef de l’ONUDI) a apporté son soutien technique et ses conseils."]
[null,"Le Programme mondial des parcs éco-industriels (GEIPP) (2019-2023) est rendu possible grâce au financement accordé par le gouvernement suisse par l’intermédiaire du Secrétariat d’État à l’économie de la Suisse (SECO)."]

{"sheet":"1.Défis et opportunités","index":1,"n_rows":25,"n_cols":8,"rows_kept":25,"cut":false,"hidden":false,"merged":[[17,7,17,8],[14,7,14,8],[16,7,16,8],[19,4,19,6],[19,7,19,8],[17,4,17,6],[18,7,18,8],[6,1,6,8],[1,1,3,4],[21,1,24,1],[17,1,20,1],[9,1,12,1],[8,4,8,6],[9,4,9,6],[10,4,10,6],[12,4,12,6],[9,2,12,2],[13,2,16,2],[17,2,20,2],[21,2,24,2],[13,4,13,6],[14,4,14,6],[18,4,18,6],[13,1,16,1],[8,7,8,8],[9,7,9,8],[10,7,10,8],[12,7,12,8],[13,7,13,8],[11,4,11,6],[15,4,15,6],[16,4,16,6],[11,7,11,8],[15,7,15,8],[24,7,24,8],[20,4,20,6],[21,4,21,6],[23,4,23,6],[24,4,24,6],[21,7,21,8],[23,7,23,8],[20,7,20,8],[22,4,22,6],[22,7,22,8]]}
[null,"Outil de services de gestion de PEI de l’ONUDI (V1)"]
[null,"RÉSUMER LES PRINCIPAUX DÉFIS ET OPPORTUNITÉS \nET LES QUESTIONS STRATÉGIQUES AUXQUELLES EST CONFRONTÉ LE PARC INDUSTRIEL",null,null,null,"Nom du parc industriel :","Insérer le nom du parc industriel"]
[null,null,null,null,null,"Période d’évaluation :","Insérer la date"]
[null,null,null,null,null,"Nom des assesseurs :","Insérer les noms"]
[]
[]
[null,"Instruction : Cette étape permet à la direction du parc et aux entreprises locataires de résumer les principaux défis, opportunités et questions stratégiques auxquels leur parc industriel est confronté. Les services à valeur ajoutée fournis par les entités de gestion du parc répondent idéalement aux défis et opportunités communs sous-jacents auxquels sont confrontés le parc industriel et les entreprises locataires. Les défis et les opportunités sont examinés d’un point de vue économique, environnemental et social."]
[]
[null,"Catégorie","Exemples de défis, d’opportunités et de questions stratégiques","Top 3","Quels sont les principaux défis, opportunités et enjeux stratégiques auxquels le parc industriel est confronté ?",null,null,"Fournir des commentaires supplémentaires"]
[null,"Défis économiques, opportunités et questions stratégiques","• Le parc industriel peine à attirer de nouveaux investisseurs\n\n• Augmentation du coût des matières premières essentielles dont ont besoin les entreprises locataires",1,"Veuillez insérer ici un défi, une opportunité ou une question stratégique clé"]
[null,null,null,2,"Veuillez insérer ici un défi, une opportunité ou une question stratégique clé"]
[null,null,null,3,"Veuillez insérer ici un défi, une opportunité ou une question stratégique clé"]
[null,null,null,4,"Veuillez insérer ici un défi, une opportunité ou une question stratégique clé"]
[null,"Défis environnementaux, opportunités et questions stratégiques","• La raréfaction de l’eau entraîne des pressions croissantes sur les parcs et les entreprises pour qu’ils réduisent leur consommation d’eau\n\n• Vieilles technologies inefficaces (par exemple, chaudières) exploitées par les entreprises locataires, entraînant une forte consommation d’énergie et la pollution de l’air",1,"Veuillez insérer ici un défi, une opportunité ou une question stratégique clé"]
[null,null,null,2,"Veuillez insérer ici un défi, une opportunité ou une question stratégique clé"]
[null,null,null,3,"Veuillez insérer ici un défi, une opportunité ou une question stratégique clé"]
[null,null,null,4,"Veuillez insérer ici un défi, une opportunité ou une question stratégique clé"]
[null,"  \nDéfis, opportunités et questions stratégiques sociales","• Tension avec les communautés locales quant à leurs attentes en matière de création d’emplois par les parcs/entreprises\n\n• La pollution des effluents créée par certaines entreprises locataires affecte les rivières et les communautés locales",1,"Veuillez insérer ici un défi, une opportunité ou une question stratégique clé"]
[null,null,null,2,"Veuillez insérer ici un défi, une opportunité ou une question stratégique clé"]
[null,null,null,3,"Veuillez insérer ici un défi, une opportunité ou une question stratégique clé"]
[null,null,null,4,"Veuillez insérer ici un défi, une opportunité ou une question stratégique clé"]
[null,"Autres\nDéfis, opportunités et questions stratégiques sociales","• Incertitude quant aux impacts de l’industrie 4.0 sur les parcs industriels et ses entreprises locataires\n\n* Manque de collaboration entre les entreprises locataires et les entreprises, d’où des opportunités manquées. ",1,"Veuillez insérer ici un défi, une opportunité ou une question stratégique clé"]
[null,null,null,2,"Veuillez insérer ici un défi, une opportunité ou une question stratégique clé"]
[null,null,null,3,"Veuillez insérer ici un défi, une opportunité ou une question stratégique clé"]
[null,null,null,4,"Veuillez insérer ici un défi, une opportunité ou une question stratégique clé"]

{"sheet":"2.Sélectionner les catégories d","index":2,"n_rows":76,"n_cols":10,"rows_kept":76,"cut":false,"hidden":false,"merged":[[73,9,75,9],[16,3,16,7],[74,3,74,7],[75,3,75,7],[73,2,75,2],[45,3,45,7],[67,3,67,7],[26,3,26,7],[41,3,41,7],[43,3,43,7],[59,3,59,7],[69,3,69,7],[72,3,72,7],[64,3,64,7],[63,3,63,7],[57,3,57,7],[23,3,23,7],[30,3,30,7],[29,2,31,2],[31,3,31,7],[22,3,22,7],[35,3,35,7],[42,3,42,7],[48,3,48,7],[56,3,56,7],[55,3,55,7],[53,3,53,7],[73,3,73,7],[60,2,62,2],[63,2,64,2],[32,3,32,7],[40,3,40,7],[39,2,41,2],[39,3,39,7],[65,2,68,2],[47,2,49,2],[50,2,51,2],[54,3,54,7],[32,2,33,2],[50,3,50,7],[51,3,51,7],[70,2,71,2],[44,3,44,7],[10,3,10,7],[13,3,13,7],[12,3,12,7],[21,3,21,7],[19,3,19,7],[17,3,17,7],[15,3,15,7],[20,3,20,7],[16,2,17,2],[65,1,71,1],[14,3,14,7],[71,3,71,7],[70,3,70,7],[62,3,62,7],[61,3,61,7],[60,3,60,7],[66,3,66,7],[68,3,68,7],[43,2,45,2],[55,2,56,2],[49,3,49,7],[65,3,65,7],[58,3,58,7],[20,2,22,2],[72,1,75,1],[8,3,8,7],[27,3,27,7],[36,2,38,2],[36,3,36,7],[38,3,38,7],[18,3,18,7],[37,3,37,7],[28,3,28,7],[27,2,28,2],[34,3,34,7],[24,3,24,7],[25,3,25,7],[54,1,64,1],[39,1,41,1],[47,1,49,1],[1,1,3,4],[57,2,59,2],[10,1,19,1],[20,1,23,1],[34,1,38,1],[24,1,33,1],[42,1,45,1],[24,2,26,2],[50,1,53,1],[6,1,6,5],[52,3,52,7],[47,3,47,7],[33,3,33,7],[11,3,11,7],[10,2,14,2],[29,3,29,7]]}
[null,"Outil de services de gestion de PEI de l’ONUDI (V1)"]
[null,"SÉLECTIONNER LES CATÉGORIES DE SERVICES \nEXAMINER EN DÉTAIL",null,null,null,"Nom du parc industriel :",{"$f":"'1.Défis et opportunités'!G2","v":"Insérer le nom du parc industriel"}]
[null,null,null,null,null,"Période d’évaluation :",{"$f":"'1.Défis et opportunités'!G3","v":"Insérer la date"}]
[null,null,null,null,null,"Nom des assesseurs :",{"$f":"'1.Défis et opportunités'!G4","v":"Insérer les noms"}]
[]
[]
[null,"Instruction : L’objectif de cette étape est de procéder à un \"examen rapide\" de toutes les catégories de services incluses dans l’outil et de sélectionner les catégories à examiner en détail dans l’étape suivante de l’outil. Cette étape permettra une utilisation efficace de l’outil dans les étapes suivantes."]
[]
[null,"Principale catégorie de services","Sous-catégorie","Valeur ajoutée des services de gestion des parcs inclus dans chaque catégorie",null,null,null,null,"Sélectionner la catégorie et les services à examiner à l’étape 3 ?","Commentaires"]
[null,"SERVICES DE GESTION DES PARCS À VALEUR AJOUTÉE"]
[null,"Soutien aux entreprises","Développement commercial et marketing","Aider au recrutement de nouvelles entreprises dans le parc qui sont synergiques et apportent une valeur ajoutée aux entreprises locataires existantes",null,null,null,null,"Veuillez sélectionner"]
[null,null,null,"Fournir des services d’incubation d’entreprises, en mettant l’accent sur le développement des PME",null,null,null,null,"Veuillez sélectionner"]
[null,null,null,"Coordonner les études d’évaluation du marché présentant un intérêt commun pour les entreprises locataires (par exemple, l’accès aux marchés « verts »)",null,null,null,null,"Veuillez sélectionner"]
[null,null,null,"Coordonner les efforts médiatiques et la publicité pour les entreprises locataires",null,null,null,null,"Veuillez sélectionner"]
[null,null,null,"Créer un centre commercial à l’intérieur du parc industriel",null,null,null,null,"Veuillez sélectionner"]
[null,null,"Autorités gouvernementales","Soutenir les entreprises locataires dans leurs relations avec les autorités (permis d’exploitation, licences commerciales, etc.)",null,null,null,null,"Veuillez sélectionner"]
[null,null,"Finance et banque","Soutenir les entreprises locataires dans l’identification et l’accès aux financements et aux subventions",null,null,null,null,"Veuillez sélectionner"]
[null,null,null,"Fournir des services bancaires à l’intérieur des parcs industriels",null,null,null,null,"Veuillez sélectionner"]
[null,null,"Marchés publics","Faciliter l’achat en commun par l’industrie de matières premières et de matériaux de transformation",null,null,null,null,"Veuillez sélectionner"]
[null,null,"Recherche & Développement (R&D)","Coordonner l’engagement des entreprises locataires avec les institutions de recherche et de développement",null,null,null,null,"Veuillez sélectionner"]
[null,"Collaboration","Communauté","Faciliter les programmes communautaires au nom du parc industriel et des entreprises locataires",null,null,null,null,"Veuillez sélectionner"]
[null,null,null,"Faciliter l’engagement communautaire au nom des entreprises locataires",null,null,null,null,"Veuillez sélectionner"]
[null,null,null,"Soutien aux communes dans le développement de zones d’activités communales et intercommunales",null,null,null,null,"Veuillez sélectionner"]
[null,null,"Comités des sociétés de locataires","Organiser et faciliter des réunions régulières de comités mixtes d’entreprises afin de trouver des solutions aux défis et opportunités communs auxquels sont confrontés le parc industriel et les entreprises",null,null,null,null,"Veuillez sélectionner"]
[null,"Environnement","Énergie","Coordonner le programme de soutien à l’amélioration de l’efficacité énergétique des entreprises locataires",null,null,null,null,"Veuillez sélectionner"]
[null,null,null,"Fournir des infrastructures énergétiques centralisées et des services d’utilité publique d’intérêt et de valeur communs aux entreprises locataires",null,null,null,null,"Veuillez sélectionner"]
[null,null,null,"Coordonner un plan de réaction aux éventuelles conséquences négatives des risques liés au changement climatique (vagues de chaleur et sécheresses, tempêtes et inondations)",null,null,null,null,"Veuillez sélectionner"]
[null,null,"Efficacité des ressources","Aider les entreprises locataires à accéder à des prestataires de services capables d’identifier et de mettre en œuvre des pratiques de production plus propres et économes en ressources",null,null,null,null,"Veuillez sélectionner"]
[null,null,null,"Faciliter l’engagement entre les entreprises locataires et les parties prenantes concernées par le développement de synergies industrielles",null,null,null,null,"Veuillez sélectionner"]
[null,null,"Déchets","Coordonner le programme de soutien au parc industriel afin d’accroître la réutilisation et le recyclage des déchets à court et à moyen terme",null,null,null,null,"Veuillez sélectionner"]
[null,null,null,"Coordonner/fournir des services et des installations centralisés pour la collecte, le stockage, le recyclage et l’élimination des déchets",null,null,null,null,"Veuillez sélectionner"]
[null,null,null,"S’engager avec les entreprises de gestion des déchets et de recyclage pour fournir des services à valeur ajoutée aux entreprises du parc et aux locataires",null,null,null,null,"Veuillez sélectionner"]
[null,null,"Eau","Coordonner le programme de soutien au parc industriel afin d’accroître la réutilisation de l’eau à court et à moyen terme",null,null,null,null,"Veuillez sélectionner"]
[null,null,null,"Fournir des infrastructures centralisées de distribution d’eau et des services d’utilité publique d’intérêt et de valeur communs aux entreprises locataires",null,null,null,null,"Veuillez sélectionner"]
[null,"Infrastructure et services publics","Bâtiments","Faciliter le développement de bâtiments durables et plus économes en ressources (\"verts\") dans le parc industriel",null,null,null,null,"Veuillez sélectionner"]
[null,null,"Sécurité","Exploiter un système commun de contrôle et d’intervention en matière de sécurité pour le parc industriel.",null,null,null,null,"Veuillez sélectionner"]
[null,null,"Transport","Faciliter les systèmes de transport partagés entre les entreprises locataires",null,null,null,null,"Veuillez sélectionner"]
[null,null,null,"Fournir des installations et des services logistiques et d’entreposage centralisés",null,null,null,null,"Veuillez sélectionner"]
[null,null,null,"Fournir des services communs d’entretien des véhicules dans le parc industriel",null,null,null,null,"Veuillez sélectionner"]
[null,"Gestion","Surveillance et systèmes","Faciliter la mise en place d’un système de gestion (qualité, environnement, social) pour le parc industriel, aligné sur les normes internationales",null,null,null,null,"Veuillez sélectionner"]
[null,null,null,"Mettre en place et exploiter un système de suivi au niveau du parc, notamment en ce qui concerne les performances environnementales, sociales et économiques et les facteurs de risque critiques",null,null,null,null,"Veuillez sélectionner"]
[null,null,null,"Mise en place d’un système de gestion et de suivi des plaintes reçues pour le parc industriel",null,null,null,null,"Veuillez sélectionner"]
[null,"Personnes","Santé","Fournir des installations et des services médicaux centralisés aux entreprises locataires",null,null,null,null,"Veuillez sélectionner"]
[null,null,"Travailleurs et compétences","Faciliter l’affectation flexible des employés entre les entreprises locataires",null,null,null,null,"Veuillez sélectionner"]
[null,null,null,"Organiser des formations sur des sujets d’intérêt commun pour les entreprises locataires",null,null,null,null,"Veuillez sélectionner"]
[null,null,null,"Mise en place d’une garderie pour les employés des entreprises locataires du parc industriel",null,null,null,null,"Veuillez sélectionner"]
[null,"FACULTATIF : SERVICES DE L’INDUSTRIE 4.0"]
[null,"Soutien aux entreprises","Centres de services, mise en réseau et regroupement","Mettre en place un centre de services pour la fabrication de pièces de rechange, de pièces techniques, d’outils ou de maquettes à l’aide de la technologie de fabrication additive sur site",null,null,null,null,"Veuillez sélectionner"]
[null,null,null,"Mettre en place des réseaux Industrie 4.0, par exemple des pôles d’innovation",null,null,null,null,"Veuillez sélectionner"]
[null,null,null,"Établir un centre d’application Industrie 4.0 pour la démonstration de composants dans des conditions d’environnement de production simulées",null,null,null,null,"Veuillez sélectionner"]
[null,"Environnement","Énergie","Fournir des services de réseau énergétique intelligent au parc industriel et aux entreprises locataires",null,null,null,null,"Veuillez sélectionner"]
[null,null,null,"Échange de chaleur perdue ; diagnostic IA basé sur l’IoT pour l’échange de chaleur perdue entre usines ou entreprises, basé sur les données de température et d’enthalpie",null,null,null,null,"Veuillez sélectionner"]
[null,null,"Déchets","Fournir des services de gestion intelligente des déchets solides au parc industriel et aux entreprises locataires",null,null,null,null,"Veuillez sélectionner"]
[null,null,"Eau","Fournir des services de réseau d’eau intelligent aux parcs industriels et aux entreprises locataires",null,null,null,null,"Veuillez sélectionner"]
[null,"Infrastructure et services publics","Bâtiments","Fournir des services de construction intelligente aux entreprises du parc industriel et aux entreprises locataires",null,null,null,null,"Veuillez sélectionner"]
[null,null,"Sécurité","Utilisation de la carte d’identité intelligente non seulement pour l’entrée dans les parcs, mais aussi pour le paiement à l’utilisation (nourriture, achats) ; utilisation pour l’accès aux zones interdites ; utilisation pour le comptage des personnes en cas d’évacuation",null,null,null,null,"Veuillez sélectionner"]
[null,null,null,"Fournir des services de sécurité intelligente et de contrôle d’accès pour un parc industriel",null,null,null,null,"Veuillez sélectionner"]
[null,null,"Transport","Fournir des services de transport intelligents au parc industriel et aux entreprises locataires",null,null,null,null,"Veuillez sélectionner"]
[null,null,null,"Gestion des créneaux horaires des camions : Réduction du temps d’attente des camions, de l’aire d’attente des camions, du personnel de sécurité et de la barrière",null,null,null,null,"Veuillez sélectionner"]
[null,null,null,"Assurer le suivi de la localisation et de l’acheminement des outils, des conteneurs, des personnes, des livraisons et d’autres véhicules par le biais de la CPS avec une connexion au GPS et à l’IdO",null,null,null,null,"Veuillez sélectionner"]
[null,null,"Infrastructure","Améliorer la gestion des actifs grâce à un jumeau numérique pour les infrastructures avec une documentation et un modèle numériques ",null,null,null,null,"Veuillez sélectionner"]
[null,null,null,"Fournir l’infrastructure de l’industrie 4.0 telle que le cloud, l’internet des objets ; mise en œuvre de l’infrastructure à l’échelle du parc pour le mouvement des véhicules autonomes ",null,null,null,null,"Veuillez sélectionner"]
[null,null,null,"Fournir des services de télécommunications et d’internet à haut débit aux entreprises locataires et aux bâtiments en réseau",null,null,null,null,"Veuillez sélectionner"]
[null,null,"Maintenance","Télémaintenance de l’infrastructure par le biais d’une assistance basée sur les technologies de l’information et de la communication",null,null,null,null,"Veuillez sélectionner"]
[null,null,null,"Utiliser des robots pour le nettoyage des rues, la tonte des pelouses et d’autres travaux de surface ",null,null,null,null,"Veuillez sélectionner"]
[null,"Gestion","Communications","Organiser des réunions régulières et des réunions ad hoc sous forme de réunions à distance",null,null,null,null,"Veuillez sélectionner"]
[null,null,null,"Norme de communication à l’échelle du parc. Éviter que différents protocoles de communication n’empêchent la communication directe entre les différents objets du parc",null,null,null,null,"Veuillez sélectionner"]
[null,null,null,"modèle 3D du parc industriel et des actifs des entreprises basé sur la photogrammétrie pour soutenir les activités de marketing et de planification",null,null,null,null,"Veuillez sélectionner"]
[null,null,null,"l’application \"Industrial Park App\" comme plateforme d’information",null,null,null,null,"Veuillez sélectionner"]
[null,null,"Données de masse","Fournir des applications Big Data et IA pour l’analyse des données clés des entreprises, telles que les systèmes de gestion de l’environnement / de l’énergie",null,null,null,null,"Veuillez sélectionner"]
[null,null,"Contrôle","Parc de surveillance et de contrôle avec drones et robots",null,null,null,null,"Veuillez sélectionner"]
[null,null,null,"Fournir des services de surveillance intelligente dans le parc industriel, notamment en ce qui concerne la qualité de l’air, le bruit, la qualité de l’eau et la circulation",null,null,null,null,"Veuillez sélectionner"]
[null,"Personnes","Santé","Fournir des soins médicaux d’urgence à distance basés sur la RA (« télémédecine »)",null,null,null,null,"Veuillez sélectionner"]
[null,null,"Travailleurs et compétences","Mettre en place un centre de formation à l’industrie 4.0 avec une usine de formation intelligente ",null,null,null,null,"Veuillez sélectionner"]
[null,null,null,"Mise en place d’un centre de formation à la RV/RA/MR pour la formation à des processus spécifiques, à des situations et à la conception du lieu de travail, à la télémaintenance, etc.",null,null,null,null,"Veuillez sélectionner"]
[null,null,null,"« Évaluation de la préparation à l’industrie 4.0 » et conseil en matière de modèle d’entreprise, fourniture de conseils pour introduire des concepts de parcs industriels intelligents",null,null,null,null,"Veuillez sélectionner"]

{"sheet":"3.Examiner les services de gest","index":3,"n_rows":50,"n_cols":16,"rows_kept":50,"cut":false,"hidden":false,"merged":[[9,14,9,15],[1,1,3,3],[6,1,6,12],[9,5,9,6],[9,9,9,12],[9,1,9,4],[9,7,9,8],[1,5,1,7],[2,5,2,7],[3,5,3,7]]}
[null,"Outil de services de gestion de PEI de l’ONUDI (V1)"]
[null,"EXAMINER ET HIÉRARCHISER LES SERVICES DE GESTION DES PARCS À VALEUR AJOUTÉE",null,null,"Nom du parc industriel :",{"$f":"'1.Défis et opportunités'!G2","v":"Insérer le nom du parc industriel"}]
[null,null,null,null,"Période d’évaluation :",{"$f":"'1.Défis et opportunités'!G3","v":"Insérer la date"}]
[null,null,null,null,"Nom des assesseurs :",{"$f":"'1.Défis et opportunités'!G4","v":"Insérer les noms"}]
[]
[]
[null,"Instruction : Cette étape permet à la direction du parc et aux entreprises locataires de passer en revue une longue liste de services à valeur ajoutée catégorisés et de définir des services spécifiques pour le parc industriel. Les services à valeur ajoutée qui sont les plus réalisables, qui présentent les avantages les plus importants et qui suscitent le plus d’intérêt de la part de la direction du parc et des entreprises sont classés par ordre de priorité et font l’objet d’une recommandation d’action à court terme."]
[]
[]
[null,"SERVICES À VALEUR AJOUTÉE INCLUS DANS CET OUTIL",null,null,null,"EXAMINER LES SERVICES EXISTANTS",null,"NOUVEAUX SERVICES",null,"LA HIÉRARCHISATION DES SERVICES À VALEUR AJOUTÉE DÉFINIS",null,null,null,null,"ACTION"]
[null,"Principale catégorie de services","Sous-catégorie","Services à valeur ajoutée potentiels de la gestion des parcs","Proposition de valeur pour les entreprises locataires et le parc industriel","Ce service est-il déjà offert dans votre parc ?","Commentaires sur les services existants / la situation","S’agit-il d’un nouveau service possible pour votre parc ?","Définir un nouveau service à valeur ajoutée pour votre parc industriel","Quelle est RÉALISABILITÉ du service ?","Quels sont les avantages probables du service ?","INTÉRÊT \ngestion du parc ?","Intéresser les entreprises locataires ?","SCORE de hiérarchisation\n(Formule)","Sélectionner un service pour une action à court terme ?","Commentaires"]
[null,"Soutien aux entreprises","Développement commercial et marketing","Aider au recrutement de nouvelles entreprises dans le parc qui sont synergiques et apportent une valeur ajoutée aux entreprises locataires existantes","• Approche cohérente et coordonnée pour attirer des entreprises synergiques afin de soutenir les entreprises locataires existantes","Veuillez sélectionner",null,"Veuillez sélectionner",null,"Veuillez sélectionner","Veuillez sélectionner","Veuillez sélectionner","Veuillez sélectionner",{"$f":"(COUNTIF(J12:M12,\"High\")*3)+(COUNTIF(J12:M12,\"Medium\")*2)+(COUNTIF(J12:M12,\"Low\")*1)+(COUNTIF(J12:M12,\"To be confirmed\")*1.5)","v":0},"Veuillez sélectionner"]
[null,"Soutien aux entreprises","Développement commercial et marketing","Fournir des services d’incubation d’entreprises, en mettant l’accent sur le développement des PME","• Attirer de nouvelles entreprises dans le parc industriel\n• Création d’emplois et développement des PME","Veuillez sélectionner",null,"Veuillez sélectionner",null,"Veuillez sélectionner","Veuillez sélectionner","Veuillez sélectionner","Veuillez sélectionner",0,"Veuillez sélectionner"]
[null,"Soutien aux entreprises","Développement commercial et marketing","Coordonner les études d’évaluation du marché présentant un intérêt commun pour les entreprises locataires (par exemple, l’accès aux marchés « verts »)","• Services partagés et donc réduction des coûts pour les entreprises locataires","Veuillez sélectionner",null,"Veuillez sélectionner",null,"Veuillez sélectionner","Veuillez sélectionner","Veuillez sélectionner","Veuillez sélectionner",0,"Veuillez sélectionner"]
[null,"Soutien aux entreprises","Développement commercial et marketing","Coordonner les efforts médiatiques et la publicité pour les entreprises locataires","• Services partagés et donc réduction des coûts pour les entreprises locataires","Veuillez sélectionner",null,"Veuillez sélectionner",null,"Veuillez sélectionner","Veuillez sélectionner","Veuillez sélectionner","Veuillez sélectionner",0,"Veuillez sélectionner"]
[null,"Soutien aux entreprises","Développement commercial et marketing","Fournir un centre commercial à l’intérieur du parc industriel","• Tous les travailleurs des entreprises locataires ont un accès facile aux installations commerciales\n• Le parc industriel devient plus attractif pour les travailleurs qualifiés","Veuillez sélectionner",null,"Veuillez sélectionner",null,"Veuillez sélectionner","Veuillez sélectionner","Veuillez sélectionner","Veuillez sélectionner",0,"Veuillez sélectionner"]
[null,"Soutien aux entreprises","Autorités gouvernementales","Soutenir les entreprises locataires dans leurs relations avec les autorités (permis d’exploitation, licences commerciales, etc.)","• Traiter avec les autorités peut souvent être un processus complexe et fastidieux pour les entreprises locataires\n• Amélioration de la capacité et de l’efficacité des entreprises locataires à obtenir les permis, licences, etc. nécessaires","Veuillez sélectionner",null,"Veuillez sélectionner",null,"Veuillez sélectionner","Veuillez sélectionner","Veuillez sélectionner","Veuillez sélectionner",0,"Veuillez sélectionner"]
[null,"Soutien aux entreprises","Finance et banque","Soutenir les entreprises locataires dans l’identification et l’accès aux financements et aux subventions","• Les entreprises locataires ont un accès plus facile et une meilleure compréhension des financements et des subventions disponibles","Veuillez sélectionner",null,"Veuillez sélectionner",null,"Veuillez sélectionner","Veuillez sélectionner","Veuillez sélectionner","Veuillez sélectionner",0,"Veuillez sélectionner"]
[null,"Soutien aux entreprises","Finance et banque","Fournir des services bancaires à l’intérieur des parcs industriels.","• Tous les travailleurs des entreprises locataires ont un accès facile aux services bancaires\n• Le parc industriel devient plus attractif pour les travailleurs qualifiés","Veuillez sélectionner",null,"Veuillez sélectionner",null,"Veuillez sélectionner","Veuillez sélectionner","Veuillez sélectionner","Veuillez sélectionner",{"$f":"(COUNTIF(J19:M19,\"High\")*3)+(COUNTIF(J19:M19,\"Medium\")*2)+(COUNTIF(J19:M19,\"Low\")*1)+(COUNTIF(J19:M19,\"To be confirmed\")*1.5)","v":0},"Veuillez sélectionner"]
[null,"Soutien aux entreprises","Marchés publics","Faciliter l’achat en commun par l’industrie de matières premières et de matériaux de transformation","• Les entreprises locataires paient des prix moins élevés pour les matières premières en raison de l’importance des achats effectués par l’ensemble des entreprises","Veuillez sélectionner",null,"Veuillez sélectionner",null,"Veuillez sélectionner","Veuillez sélectionner","Veuillez sélectionner","Veuillez sélectionner",0,"Veuillez sélectionner"]
[null,"Soutien aux entreprises","Recherche & Développement (R&D)","Coordonner l’engagement des entreprises locataires avec les institutions de recherche et de développement.","• Les entreprises locataires ont un accès plus facile aux institutions de R&D, ce qui profite à leurs innovations en matière de produits et de processus et à leur développement commercial stratégique","Veuillez sélectionner",null,"Veuillez sélectionner",null,"Veuillez sélectionner","Veuillez sélectionner","Veuillez sélectionner","Veuillez sélectionner",0,"Veuillez sélectionner"]
[null,"Collaboration","Communauté","Faciliter les programmes communautaires au nom du parc industriel et des entreprises locataires","• Réduction de la pression exercée sur les entreprises locataires pour qu’elles mettent en œuvre leurs propres programmes communautaires\n• De bonnes et solides relations avec la communauté sont un avantage stratégique et opérationnel pour le parc industriel et les entreprises locataires","Veuillez sélectionner",null,"Veuillez sélectionner",null,"Veuillez sélectionner","Veuillez sélectionner","Veuillez sélectionner","Veuillez sélectionner",0,"Veuillez sélectionner"]
[null,"Collaboration","Communauté","Faciliter l’engagement communautaire au nom des entreprises locataires","• La gestion du parc permet de parler d’une seule voix au nom des entreprises locataires, ce qui se traduit par des messages communautaires cohérents et une approche simplifiée de l’engagement communautaire\n• Réduction de la pression exercée sur les entreprises locataires pour qu’elles s’engagent elles-mêmes auprès des communautés","Veuillez sélectionner",null,"Veuillez sélectionner",null,"Veuillez sélectionner","Veuillez sélectionner","Veuillez sélectionner","Veuillez sélectionner",{"$f":"(COUNTIF(J23:M23,\"High\")*3)+(COUNTIF(J23:M23,\"Medium\")*2)+(COUNTIF(J23:M23,\"Low\")*1)+(COUNTIF(J23:M23,\"To be confirmed\")*1.5)","v":0},"Veuillez sélectionner"]
[null,"Collaboration","Communauté","Soutien aux communes dans le développement de zones d’activités communales et intercommunales","• De bonnes et solides relations avec la municipalité et la communauté locale sont un avantage stratégique et opérationnel pour le parc industriel et les entreprises locataires\n• Les entreprises communales peuvent soutenir les entreprises locataires (par exemple, transformation ou fourniture de produits semi-finis)","Veuillez sélectionner",null,"Veuillez sélectionner",null,"Veuillez sélectionner","Veuillez sélectionner","Veuillez sélectionner","Veuillez sélectionner",0,"Veuillez sélectionner"]
[null,"Collaboration","Comités des sociétés de locataires","Organiser et faciliter des réunions régulières de comités mixtes d’entreprises afin d’examiner et de trouver des solutions aux défis et opportunités communs auxquels sont confrontés le parc industriel et les entreprises","• Au lieu que chaque entreprise tente de résoudre ses propres problèmes, ces comités facilitent la collaboration entre les entreprises locataires afin qu’elles partagent leurs expériences, trouvent des solutions ensemble et reproduisent les bonnes pratiques déjà mises en œuvre par certaines entreprises","Veuillez sélectionner",null,"Veuillez sélectionner",null,"Veuillez sélectionner","Veuillez sélectionner","Veuillez sélectionner","Veuillez sélectionner",0,"Veuillez sélectionner"]
[null,"Environnement","Énergie","Coordonner le programme de soutien à l’amélioration de l’efficacité énergétique des entreprises locataires, en particulier pour les 50 % d’entreprises les plus consommatrices d’énergie du parc","• Réduction de la consommation d’énergie et donc des coûts opérationnels pour les entreprises locataires\n• Les entreprises locataires ont plus facilement accès à des conseils techniques, à des ressources documentaires et à un réseau professionnel d’experts en matière d’efficacité énergétique","Veuillez sélectionner",null,"Veuillez sélectionner",null,"Veuillez sélectionner","Veuillez sélectionner","Veuillez sélectionner","Veuillez sélectionner",{"$f":"(COUNTIF(J26:M26,\"High\")*3)+(COUNTIF(J26:M26,\"Medium\")*2)+(COUNTIF(J26:M26,\"Low\")*1)+(COUNTIF(J26:M26,\"To be confirmed\")*1.5)","v":0},"Veuillez sélectionner"]
[null,"Environnement","Énergie","Fournir des infrastructures énergétiques centralisées et des services d’utilité publique d’intérêt et de valeur communs aux entreprises locataires, tels que la cogénération partagée, les systèmes de chaudières multi-entreprises, la récupération de la chaleur résiduelle","• Réduction de la nécessité pour les entreprises locataires d’avoir leurs infrastructures et équipements énergétiques sur place, et donc réduction des coûts\n• Services partagés et donc réduction des coûts pour les entreprises locataires","Veuillez sélectionner",null,"Veuillez sélectionner",null,"Veuillez sélectionner","Veuillez sélectionner","Veuillez sélectionner","Veuillez sélectionner",0,"Veuillez sélectionner"]
[null,"Environnement","Énergie","Coordonner un plan de réaction aux éventuelles conséquences négatives des risques liés au changement climatique (vagues de chaleur et sécheresses, tempêtes et inondations)","• Approche cohérente et coordonnée pour réagir aux risques liés au changement climatique qui affectent le parc industriel et les entreprises locataires","Veuillez sélectionner",null,"Veuillez sélectionner",null,"Veuillez sélectionner","Veuillez sélectionner","Veuillez sélectionner","Veuillez sélectionner",0,"Veuillez sélectionner"]
[null,"Environnement","Efficacité des ressources","Aider les entreprises locataires à accéder à des prestataires de services capables d’identifier et de mettre en œuvre des pratiques de production efficaces en termes d’utilisation des ressources et plus propres, ainsi que des technologies propres","• Augmentation de l’efficacité des ressources et donc réduction des coûts opérationnels pour les entreprises locataires\n• Les entreprises locataires ont plus facilement accès à des conseils techniques, à des ressources documentaires et à un réseau professionnel d’experts en matière d’utilisation efficace des ressources et de production plus propre","Veuillez sélectionner",null,"Veuillez sélectionner",null,"Veuillez sélectionner","Veuillez sélectionner","Veuillez sélectionner","Veuillez sélectionner",0,"Veuillez sélectionner"]
[null,"Environnement","Efficacité des ressources","Faciliter l’engagement entre les entreprises locataires et les parties prenantes concernées (municipalité locale, fournisseurs de services, entreprises extérieures au parc) afin d’identifier et de développer des synergies industrielles (par exemple, des synergies au niveau de la chaîne d’approvisionnement, des utilités, des sous-produits, des services et des synergies urbano-industrielles)","• Les entreprises locataires ont plus facilement accès à des conseils techniques, à des ressources documentaires et à un réseau professionnel d’experts en matière de développement de synergies industrielles\n• Les avantages des synergies industrielles sont multiples : efficacité accrue des ressources, partage et réduction des coûts, sécurité de l’approvisionnement en matières premières, etc","Veuillez sélectionner",null,"Veuillez sélectionner",null,"Veuillez sélectionner","Veuillez sélectionner","Veuillez sélectionner","Veuillez sélectionner",0,"Veuillez sélectionner"]
[null,"Environnement","Déchets","Coordonner le programme de soutien au parc industriel afin d’accroître la réutilisation et le recyclage des déchets à court et à moyen terme","• Les entreprises locataires ont plus facilement accès à des conseils techniques, à des ressources documentaires et à un réseau professionnel d’experts en matière de gestion et de réutilisation des déchets","Veuillez sélectionner",null,"Veuillez sélectionner",null,"Veuillez sélectionner","Veuillez sélectionner","Veuillez sélectionner","Veuillez sélectionner",0,"Veuillez sélectionner"]
[null,"Environnement","Déchets","Coordonner/fournir des services et des installations centralisés pour la collecte, le stockage, le recyclage et l’élimination des déchets","• Amélioration de l’efficacité de la collecte, du stockage, du recyclage et de l’élimination des déchets et, partant, réduction des coûts pour les entreprises locataires\n• Meilleure conformité juridique des entreprises locataires\n• Amélioration de la réputation du parc industriel (et de ses entreprises locataires) auprès de la communauté locale et des autorités de régulation","Veuillez sélectionner",null,"Veuillez sélectionner",null,"Veuillez sélectionner","Veuillez sélectionner","Veuillez sélectionner","Veuillez sélectionner",0,"Veuillez sélectionner"]
[null,"Environnement","Déchets","S’engager avec les entreprises de gestion des déchets et de recyclage pour fournir des services à valeur ajoutée aux entreprises du parc et aux locataires","Comme ci-dessus","Veuillez sélectionner",null,"Veuillez sélectionner",null,"Veuillez sélectionner","Veuillez sélectionner","Veuillez sélectionner","Veuillez sélectionner",0,"Veuillez sélectionner"]
[null,"Environnement","Eau","Coordonner le programme de soutien au parc industriel afin d’accroître la réutilisation de l’eau à court et à moyen terme","• Réduction de la consommation d’eau et donc des coûts opérationnels pour les entreprises locataires\n• Risques réduits pour les entreprises locataires en cas de restrictions d’eau","Veuillez sélectionner",null,"Veuillez sélectionner",null,"Veuillez sélectionner","Veuillez sélectionner","Veuillez sélectionner","Veuillez sélectionner",{"$f":"(COUNTIF(J34:M34,\"High\")*3)+(COUNTIF(J34:M34,\"Medium\")*2)+(COUNTIF(J34:M34,\"Low\")*1)+(COUNTIF(J34:M34,\"To be confirmed\")*1.5)","v":0},"Veuillez sélectionner"]
[null,"Environnement","Eau","Fournir des infrastructures centralisées de distribution d’eau et des services d’utilité publique d’intérêt et de valeur communs aux entreprises locataires, y compris l’approvisionnement en eau, le traitement et le recyclage","• Réduction de la nécessité pour les entreprises locataires de disposer de leurs infrastructures et équipements de distribution d’eau sur le site, et donc réduction des coûts\n• Services partagés et donc réduction des coûts pour les entreprises locataires","Veuillez sélectionner",null,"Veuillez sélectionner",null,"Veuillez sélectionner","Veuillez sélectionner","Veuillez sélectionner","Veuillez sélectionner",0,"Veuillez sélectionner"]
[null,"Infrastructure et services publics","Bâtiments","Faciliter le développement de bâtiments durables et plus économes en ressources (\"verts\") dans le parc industriel","• Il est plus facile pour les entreprises locataires de créer et d’exploiter des bâtiments \"verts\"\n• Les entreprises locataires réduisent les coûts liés à l’utilisation de l’énergie et de l’eau dans leurs bâtiments","Veuillez sélectionner",null,"Veuillez sélectionner",null,"Veuillez sélectionner","Veuillez sélectionner","Veuillez sélectionner","Veuillez sélectionner",{"$f":"(COUNTIF(J36:M36,\"High\")*3)+(COUNTIF(J36:M36,\"Medium\")*2)+(COUNTIF(J36:M36,\"Low\")*1)+(COUNTIF(J36:M36,\"To be confirmed\")*1.5)","v":0},"Veuillez sélectionner"]
[null,"Infrastructure et services publics","Sécurité","Exploiter un système commun de contrôle et d’intervention en matière de sécurité pour le parc industriel","• Des coûts partagés et donc moins élevés pour les entreprises locataires\n• Amélioration de la sécurité dans le parc industriel et, par conséquent, de la réputation du parc industriel","Veuillez sélectionner",null,"Veuillez sélectionner",null,"Veuillez sélectionner","Veuillez sélectionner","Veuillez sélectionner","Veuillez sélectionner",0,"Veuillez sélectionner"]
[null,"Infrastructure et services publics","Transport","Faciliter les systèmes de transport partagés entre les entreprises locataires","• Système partagé et donc réduction des coûts de transport pour les entreprises locataires","Veuillez sélectionner",null,"Veuillez sélectionner",null,"Veuillez sélectionner","Veuillez sélectionner","Veuillez sélectionner","Veuillez sélectionner",0,"Veuillez sélectionner"]
[null,"Infrastructure et services publics","Transport","Fournir des installations et des services logistiques et d’entreposage centralisés","• Réduction du besoin d’espace d’entreposage dans les entreprises locataires, et donc plus d’espace disponible pour les activités de production\n• Partage d’installations et d’équipements, et donc réduction des coûts logistiques pour les entreprises locataires","Veuillez sélectionner",null,"Veuillez sélectionner",null,"Veuillez sélectionner","Veuillez sélectionner","Veuillez sélectionner","Veuillez sélectionner",{"$f":"(COUNTIF(J39:M39,\"High\")*3)+(COUNTIF(J39:M39,\"Medium\")*2)+(COUNTIF(J39:M39,\"Low\")*1)+(COUNTIF(J39:M39,\"To be confirmed\")*1.5)","v":0},"Veuillez sélectionner"]
[null,"Infrastructure et services publics","Transport","Fournir des services communs d’entretien des véhicules dans le parc industriel","• Chaque entreprise locataire n’a pas besoin de gérer son propre service d’entretien des véhicules (les entreprises locataires peuvent se concentrer davantage sur leur activité principale)\n• Partage des services et des installations, et donc réduction des coûts d’entretien pour les entreprises locataires","Veuillez sélectionner",null,"Veuillez sélectionner",null,"Veuillez sélectionner","Veuillez sélectionner","Veuillez sélectionner","Veuillez sélectionner",0,"Veuillez sélectionner"]
[null,"Gestion","Surveillance et systèmes","Faciliter la mise en place d’un système de gestion (qualité, environnement, social) pour le parc industriel, aligné sur les normes internationales","• Approche cohérente et coordonnée du système de gestion dans le parc industriel\n• Réduction de la pression exercée sur les entreprises locataires pour qu’elles mettent en œuvre leurs systèmes de gestion","Veuillez sélectionner",null,"Veuillez sélectionner",null,"Veuillez sélectionner","Veuillez sélectionner","Veuillez sélectionner","Veuillez sélectionner",0,"Veuillez sélectionner"]
[null,"Gestion","Surveillance et systèmes","Mettre en place et exploiter un système de suivi au niveau du parc, notamment en ce qui concerne les performances environnementales, sociales et économiques et les facteurs de risque critiques","• Approche cohérente et coordonnée du système de surveillance dans le parc industriel\n• Réduction de la pression exercée sur les entreprises locataires pour qu’elles exploitent leurs systèmes de surveillance","Veuillez sélectionner",null,"Veuillez sélectionner",null,"Veuillez sélectionner","Veuillez sélectionner","Veuillez sélectionner","Veuillez sélectionner",0,"Veuillez sélectionner"]
[null,"Gestion","Surveillance et systèmes","Mise en place d’un système de gestion et de suivi des plaintes reçues pour le parc industriel","• Approche cohérente et coordonnée du traitement des griefs dans le parc industriel\n• Réduction de la pression exercée sur les entreprises locataires pour qu’elles mettent en place leur propre système de gestion des griefs","Veuillez sélectionner",null,"Veuillez sélectionner",null,"Veuillez sélectionner","Veuillez sélectionner","Veuillez sélectionner","Veuillez sélectionner",0,"Veuillez sélectionner"]
[null,"Personnes","Santé","Fournir des installations et des services médicaux centralisés aux entreprises locataires","• Tous les travailleurs des entreprises locataires ont un accès facile aux services médicaux","Veuillez sélectionner",null,"Veuillez sélectionner",null,"Veuillez sélectionner","Veuillez sélectionner","Veuillez sélectionner","Veuillez sélectionner",0,"Veuillez sélectionner"]
[null,"Personnes","Travailleurs et compétences","Faciliter l’affectation flexible des employés entre les entreprises locataires","• Utilisation accrue des employés des entreprises locataires\n• Partager des employés entre plusieurs entreprises et ainsi réduire les coûts et/ou augmenter les revenus","Veuillez sélectionner",null,"Veuillez sélectionner",null,"Veuillez sélectionner","Veuillez sélectionner","Veuillez sélectionner","Veuillez sélectionner",{"$f":"(COUNTIF(J45:M45,\"High\")*3)+(COUNTIF(J45:M45,\"Medium\")*2)+(COUNTIF(J45:M45,\"Low\")*1)+(COUNTIF(J45:M45,\"To be confirmed\")*1.5)","v":0},"Veuillez sélectionner"]
[null,"Personnes","Travailleurs et compétences","Organiser des formations sur des sujets d’intérêt commun pour les entreprises locataires","• Les entreprises locataires ont plus facilement accès aux formations \n• Les entreprises locataires n’ont pas à organiser elles-mêmes les formations, ce qui permet de gagner du temps et de réduire les coûts","Veuillez sélectionner",null,"Veuillez sélectionner",null,"Veuillez sélectionner","Veuillez sélectionner","Veuillez sélectionner","Veuillez sélectionner",0,"Veuillez sélectionner"]
[null,"Personnes","Travailleurs et compétences","Mise en place d’une garderie pour les employés des entreprises locataires du parc industriel","• Capacité accrue des entreprises locataires à maintenir et à soutenir les employés ayant de jeunes enfants\n• Efficacité et commodité pour les employés qui déposent et récupèrent leurs enfants avant et après le travail","Veuillez sélectionner",null,"Veuillez sélectionner",null,"Veuillez sélectionner","Veuillez sélectionner","Veuillez sélectionner","Veuillez sélectionner",0,"Veuillez sélectionner"]
[null,"Autres","Autres",null,null,"Veuillez sélectionner",null,"Veuillez sélectionner",null,"Veuillez sélectionner","Veuillez sélectionner","Veuillez sélectionner","Veuillez sélectionner",0,"Veuillez sélectionner"]
[null,"Autres","Autres",null,null,"Veuillez sélectionner",null,"Veuillez sélectionner",null,"Veuillez sélectionner","Veuillez sélectionner","Veuillez sélectionner","Veuillez sélectionner",0,"Veuillez sélectionner"]
[null,"Autres","Autres",null,null,"Veuillez sélectionner",null,"Veuillez sélectionner",null,"Veuillez sélectionner","Veuillez sélectionner","Veuillez sélectionner","Veuillez sélectionner",0,"Veuillez sélectionner"]

{"sheet":"3.Révision des services I4.0 (o","index":4,"n_rows":43,"n_cols":16,"rows_kept":43,"cut":false,"hidden":false,"merged":[[9,14,9,15],[3,6,3,8],[1,1,3,3],[9,5,9,6],[6,1,6,12],[9,9,9,12],[9,1,9,4],[9,7,9,8]]}
[null,"Outil de services de gestion de PEI de l’ONUDI (V1)"]
[null,"FACULTATIF : EXAMINER ET DONNER LA PRIORITÉ AUX\nSERVICES DE L’INDUSTRIE 4.0",null,null,null,"Nom du parc industriel :",{"$f":"'1.Défis et opportunités'!G2","v":"Insérer le nom du parc industriel"}]
[null,null,null,null,null,"Période d’évaluation :",{"$f":"'1.Défis et opportunités'!G3","v":"Insérer la date"}]
[null,null,null,null,null,"Nom des assesseurs :",{"$f":"'1.Défis et opportunités'!G4","v":"Insérer les noms"}]
[]
[]
[null,"Instruction :  Cette étape guide la direction du parc et les entreprises locataires dans l’examen d’une longue liste de services Industrie 4.0 catégorisés et dans la définition de services spécifiques pour le parc industriel. Les services de l’industrie 4.0 qui sont les plus réalisables, qui présentent les avantages les plus importants et qui suscitent le plus d’intérêt de la part de la direction du parc et des entreprises sont classés par ordre de priorité et font l’objet d’une recommandation pour une action à court terme."]
[]
[]
[null,"SERVICES DE L’INDUSTRIE 4.0 INCLUS DANS CET OUTIL",null,null,null,"EXAMINER LES SERVICES EXISTANTS",null,"NOUVEAUX SERVICES",null,"PRIORITÉ AUX SERVICES À VALEUR AJOUTÉE",null,null,null,null,"ACTION"]
[null,"Principale catégorie de services","Sous-catégorie","Services potentiels de l’industrie 4.0 pour la gestion des parcs","Proposition de valeur pour les entreprises locataires et le parc industriel","Ce service est-il déjà offert dans votre parc ?","Commentaires sur les services existants / la situation","S’agit-il d’un nouveau service possible pour votre parc ?","Définir un nouveau service Industrie 4.0 pour votre parc industriel","Quelle est RÉALISABILITÉ du service ?","Quels sont les avantages probables du service ?","INTÉRÊT \ngestion du parc ?","Intéresser les entreprises locataires ?","SCORE de hiérarchisation\n(Formule)","Sélectionner un service pour une action à court terme ?","Commentaires"]
[null,"Soutien aux entreprises","Centres de services, mise en réseau et regroupement","Mettre en place un centre de services pour la fabrication de pièces de rechange, de pièces techniques, d’outils ou de maquettes à l’aide de la technologie de fabrication additive sur site","• Environnemental : meilleure résilience de la chaîne d’approvisionnement, en évitant le transport de pièces entre les fournisseurs et la période d’enquête\n• Économique : Au lieu que chaque entreprise essaie de résoudre ses propres problèmes d’approvisionnement en pièces détachées, il est possible de collaborer avec les entreprises locataires pour partager le centre de service de technologie AM. Les fabricants peuvent réduire leurs besoins en matière d’entreposage au profit d’une production à la demande de composants à proximité de leurs propres installations","Veuillez sélectionner",null,"Veuillez sélectionner",null,"Veuillez sélectionner","Veuillez sélectionner","Veuillez sélectionner","Veuillez sélectionner",{"$f":"(COUNTIF(J12:M12,\"High\")*3)+(COUNTIF(J12:M12,\"Medium\")*2)+(COUNTIF(J12:M12,\"Low\")*1)+(COUNTIF(J12:M12,\"To be confirmed\")*1.5)","v":0},"Veuillez sélectionner"]
[null,"Soutien aux entreprises","Centres de services, mise en réseau et regroupement","Mettre en place des réseaux Industrie 4.0, par exemple des pôles d’innovation","• Mise à disposition d’une plateforme d’échange d’informations sur les questions liées à l’industrie 4.0 \n• Les technologies et les applications de l’industrie 4.0 étant un domaine en pleine évolution, l’échange d’informations entre les entreprises locataires et les parties prenantes externes telles que les universités, les instituts de recherche et les écoles professionnelles est essentiel pour rester à la pointe de l’innovation actuelle","Veuillez sélectionner",null,"Veuillez sélectionner",null,"Veuillez sélectionner","Veuillez sélectionner","Veuillez sélectionner","Veuillez sélectionner",0,"Veuillez sélectionner"]
[null,"Soutien aux entreprises","Centres de services, mise en réseau et regroupement","Établir un centre d’application Industrie 4.0 pour la démonstration de composants dans des conditions d’environnement de production simulé pour le marketing et comme banc d’essai fournissant une simulation des conditions réelles","• Test de simulation de l’équipement et de la solution Industrie 4.0 dans des conditions réelles\n• Les entreprises qui vendent des équipements et des logiciels liés à l’industrie 4.0 ; les entreprises qui ont l’intention de mettre en place des solutions pour l’industrie 4.0 et qui veulent tester le système dans des conditions réelles gagnent du temps & de l’argent avant l’entrée sur le marché / l’installation","Veuillez sélectionner",null,"Veuillez sélectionner",null,"Veuillez sélectionner","Veuillez sélectionner","Veuillez sélectionner","Veuillez sélectionner",0,"Veuillez sélectionner"]
[null,"Environnement","Énergie","Fournir des services de réseau énergétique intelligent au parc industriel et aux entreprises locataires\n•Réseau de communication spécialisé qui achemine l’électricité et les données afin d’équilibrer l’offre et la demande et de maintenir un service fiable\n• Surveillance en temps réel de l’approvisionnement en énergie pour la détection précoce de variables non standard","• Économique : Amélioration de l’avantage concurrentiel et accroissement des possibilités d’investissement\n• Environnemental : Diminution de la consommation d’énergie et des émissions de gaz à effet de serre, encouragement de l’utilisation des énergies renouvelables, en réduisant les problèmes potentiels liés à l’intermittence de la production d’électricité\n• Social : Créer des emplois, par exemple dans la production d’énergie renouvelable","Veuillez sélectionner",null,"Veuillez sélectionner",null,"Veuillez sélectionner","Veuillez sélectionner","Veuillez sélectionner","Veuillez sélectionner",{"$f":"(COUNTIF(J15:M15,\"High\")*3)+(COUNTIF(J15:M15,\"Medium\")*2)+(COUNTIF(J15:M15,\"Low\")*1)+(COUNTIF(J15:M15,\"To be confirmed\")*1.5)","v":0},"Veuillez sélectionner"]
[null,"Environnement","Énergie","Échange de chaleur perdue ; diagnostic IA basé sur l’IoT pour l’échange de chaleur perdue entre usines ou entreprises, basé sur les données de température et d’enthalpie","• Économique & environnemental : Services en nuage pour la réduction de la chaleur résiduelle inutilisée entraînant une réduction de la production de chaleur nécessaire\n• Les entreprises obtiennent des informations en temps réel sur l’utilisation potentielle de la chaleur perdue, ce qui se traduit par un échange ou une transformation de la chaleur en X","Veuillez sélectionner",null,"Veuillez sélectionner",null,"Veuillez sélectionner","Veuillez sélectionner","Veuillez sélectionner","Veuillez sélectionner",0,"Veuillez sélectionner"]
[null,"Environnement","Déchets","Fournir des services de gestion intelligente des déchets solides aux entreprises locataires et aux parcs industriels, y compris des capteurs de poubelles avec des compacteurs solaires, des systèmes d’information géographique (SIG) pour la planification des itinéraires, le recyclage et la récupération automatisés des matériaux, et la conversion des déchets en énergie","• Économique : Un environnement économique attrayant\n• Environnemental : Réduction de l’espace utilisé dans les décharges et des émissions de gaz à effet de serre\n• Social : Un environnement plus propre et une meilleure santé","Veuillez sélectionner",null,"Veuillez sélectionner",null,"Veuillez sélectionner","Veuillez sélectionner","Veuillez sélectionner","Veuillez sélectionner",0,"Veuillez sélectionner"]
[null,"Environnement","Eau","Fournir des services de réseau d’eau intelligent aux parcs industriels et aux entreprises locataires\n\n• Réseau d’infrastructures existantes, comptage précis et transmission des données, capteurs sur l’ensemble du réseau pour détecter les contaminants et les fuites, connaissance de la situation, captage de l’eau (eau de pluie, eaux usées recyclées et réutilisées, récupération de l’énergie cinétique pour la production d’électricité, entre autres)","• Économique : Diminution des coûts opérationnels\n• Environnemental : Élimination des fuites inutiles et optimisation de la consommation\n• Social : Amélioration de la qualité et de la fiabilité de l’eau","Veuillez sélectionner",null,"Veuillez sélectionner",null,"Veuillez sélectionner","Veuillez sélectionner","Veuillez sélectionner","Veuillez sélectionner",{"$f":"(COUNTIF(J18:M18,\"High\")*3)+(COUNTIF(J18:M18,\"Medium\")*2)+(COUNTIF(J18:M18,\"Low\")*1)+(COUNTIF(J18:M18,\"To be confirmed\")*1.5)","v":0},"Veuillez sélectionner"]
[null,"Infrastructure et services publics","Bâtiments","Fournir des services de construction intelligente aux entreprises du parc industriel et aux entreprises locataires\n• Application de capteurs, de compteurs, de systèmes et de logiciels pour surveiller et contrôler un large éventail de fonctions du bâtiment, par exemple l’éclairage, l’énergie, l’eau, le chauffage, la ventilation et la climatisation (CVC), les communications, la vidéosurveillance, la détection d’intrusion, la sécurité incendie","• Économique : Réduction des factures de services publics, réduction du coût et de la fréquence des réparations, augmentation du taux de retour sur investissement\n• Environnemental : Réduction de l’énergie et des émissions de gaz à effet de serre (GES), réduction du gaspillage d’eau et production d’énergie renouvelable\n• Social : Satisfaction accrue des travailleurs, amélioration du confort des occupants, de la sécurité, de la santé et de la commodité","Veuillez sélectionner",null,"Veuillez sélectionner",null,"Veuillez sélectionner","Veuillez sélectionner","Veuillez sélectionner","Veuillez sélectionner",0,"Veuillez sélectionner"]
[null,"Infrastructure et services publics","Sécurité","L’utilisation de la carte d’identité intelligente ne concerne pas seulement l’entrée dans les parcs, mais aussi le paiement à l’utilisation (nourriture, boissons, achats), l’accès aux zones interdites et le comptage des personnes en cas d’évacuation d’un bâtiment","• Social : Simplification du paiement, par exemple dans les aires de restauration ; identification en temps réel des personnes disparues\n• Économique : Processus d’allègement de la charge de travail pour les services du personnel","Veuillez sélectionner",null,"Veuillez sélectionner",null,"Veuillez sélectionner","Veuillez sélectionner","Veuillez sélectionner","Veuillez sélectionner",0,"Veuillez sélectionner"]
[null,"Infrastructure et services publics","Sécurité","Fournir des services de sécurité intelligente et de contrôle d’accès pour un parc industriel\n• Données en temps réel sur les personnes entrant dans le parc par le biais du contrôle des cartes d’accès ou de l’enregistrement des visiteurs. ","• En cas d’urgence, le nombre total de personnes présentes dans le parc sera disponible.\n• Sûreté et sécurité des employés et des visiteurs du parc.","Veuillez sélectionner",null,"Veuillez sélectionner",null,"Veuillez sélectionner","Veuillez sélectionner","Veuillez sélectionner","Veuillez sélectionner",0,"Veuillez sélectionner"]
[null,"Infrastructure et services publics","Transport","Fournir des services de transport intelligents au parc industriel et aux entreprises locataires\n• Collecte en temps réel des mouvements du trafic, combinée avec les données des routes et des feux de circulation, et application de l’analyse pour l’optimisation","• Économique : Amélioration des budgets de transport\n• Environnemental : Réduction de la pollution et des émissions de gaz à effet de serre\n• Social : Réduction des embouteillages et de la durée des trajets","Veuillez sélectionner",null,"Veuillez sélectionner",null,"Veuillez sélectionner","Veuillez sélectionner","Veuillez sélectionner","Veuillez sélectionner",{"$f":"(COUNTIF(J22:M22,\"High\")*3)+(COUNTIF(J22:M22,\"Medium\")*2)+(COUNTIF(J22:M22,\"Low\")*1)+(COUNTIF(J22:M22,\"To be confirmed\")*1.5)","v":0},"Veuillez sélectionner"]
[null,"Infrastructure et services publics","Transport","Gestion des créneaux horaires des camions : Réduction du temps d’attente des camions, de la zone d’attente des camions, de la sécurité et du personnel de la barrière grâce à la détermination de créneaux horaires pour l’entrée et le chargement/déchargement des camions","• Gestion : Renforcer la sécurité dans le parc industriel\n• Économique : Réduction des coûts de sécurité, prévision de l’arrivée des camions à la station de chargement pour une meilleure planification du travail","Veuillez sélectionner",null,"Veuillez sélectionner",null,"Veuillez sélectionner","Veuillez sélectionner","Veuillez sélectionner","Veuillez sélectionner",0,"Veuillez sélectionner"]
[null,"Infrastructure et services publics","Transport","Assurer le suivi de la localisation et de l’acheminement des outils, des conteneurs, des personnes, des livraisons et d’autres véhicules par le biais de la CPS avec une connexion au GPS et à l’IdO","• Économique : Réduction du temps de recherche d’outils, de conteneurs ou de véhicules, suivi des déplacements des personnes\n","Veuillez sélectionner",null,"Veuillez sélectionner",null,"Veuillez sélectionner","Veuillez sélectionner","Veuillez sélectionner","Veuillez sélectionner",0,"Veuillez sélectionner"]
[null,"Infrastructure et services publics","Infrastructure","Améliorer la gestion des actifs grâce à un jumeau numérique pour les infrastructures avec une documentation et un modèle numériques (par exemple, les rues, les tuyaux &, les centrales électriques, les stations d’épuration, l’élimination des déchets), les diagnostics IA pour la maintenance prédictive, le contrôle avancé des processus, l’exploitation basée sur la demande, l’optimisation des processus en temps réel ","• Économique : Réduction des coûts d’exploitation et de maintenance des infrastructures (par exemple, électricité, traitement des eaux usées)\n• Environnemental : Amélioration des processus d’infrastructure tels que la production d’électricité et la station d’épuration des eaux usées","Veuillez sélectionner",null,"Veuillez sélectionner",null,"Veuillez sélectionner","Veuillez sélectionner","Veuillez sélectionner","Veuillez sélectionner",{"$f":"(COUNTIF(J25:M25,\"High\")*3)+(COUNTIF(J25:M25,\"Medium\")*2)+(COUNTIF(J25:M25,\"Low\")*1)+(COUNTIF(J25:M25,\"To be confirmed\")*1.5)","v":0},"Veuillez sélectionner"]
[null,"Infrastructure et services publics","Infrastructure","Fournir une infrastructure Industry 4.0 telle que Cloud (PaaS, SaaS, IaaS, hébergement local ou contrat conjoint à l’échelle du parc avec un fournisseur), IoT (par exemple 5G ou LoRaWAN ou NB-IoT Communication, mise en œuvre à l’échelle du parc, infrastructure pour le mouvement des véhicules autonomes...) ","• Économique : les solutions de l’industrie 4.0 nécessitent une infrastructure appropriée qui doit être fournie soit par un fournisseur national, soit sous la forme d’un réseau internet propriétaire. Le type d’infrastructure optimal dépend de facteurs tels que le volume de données, la qualité de la source, la qualité de l’information, etc.","Veuillez sélectionner",null,"Veuillez sélectionner",null,"Veuillez sélectionner","Veuillez sélectionner","Veuillez sélectionner","Veuillez sélectionner",0,"Veuillez sélectionner"]
[null,"Infrastructure et services publics","Infrastructure","Fournir des services de télécommunications et d’internet à haut débit aux entreprises locataires et aux bâtiments en réseau","• Services partagés et donc réduction des coûts pour les entreprises locataires\n• Les entreprises locataires ont la possibilité d’appliquer les solutions de l’industrie 4.0","Veuillez sélectionner",null,"Veuillez sélectionner",null,"Veuillez sélectionner","Veuillez sélectionner","Veuillez sélectionner","Veuillez sélectionner",0,"Veuillez sélectionner"]
[null,"Infrastructure et services publics","Maintenance","Télémaintenance d’infrastructures (par exemple, services publics, systèmes d’alimentation électrique haute tension/moyenne tension, stations d’épuration, prétraitement des eaux usées) grâce à une assistance basée sur les technologies de l’information et de la communication","• Économique : amélioration de la qualité de l’entretien et des réparations, réduction des délais et des coûts de transport pour les réparations et l’entretien\n• Environnemental : Réduction des transports et des émissions associées","Veuillez sélectionner",null,"Veuillez sélectionner",null,"Veuillez sélectionner","Veuillez sélectionner","Veuillez sélectionner","Veuillez sélectionner",0,"Veuillez sélectionner"]
[null,"Infrastructure et services publics","Maintenance","Utiliser des robots pour le nettoyage des rues, la tonte des pelouses et d’autres travaux de surface ","• Social : Les travailleurs peu qualifiés peuvent être formés à des tâches plus difficiles telles que le contrôle du travail du robot, les réparations et la préparation des itinéraires\n• Économique : Réduction des coûts ; les robots peuvent assurer le service 24 heures sur 24, 7 jours sur 7, interrompu par une recharge automatique uniquement économique : Réduction des coûts ; les robots peuvent assurer le service 24 heures sur 24, 7 jours sur 7, interrompu uniquement par la recharge automatique","Veuillez sélectionner",null,"Veuillez sélectionner",null,"Veuillez sélectionner","Veuillez sélectionner","Veuillez sélectionner","Veuillez sélectionner",0,"Veuillez sélectionner"]
[null,"Gestion","Communications","Organiser des réunions régulières et des réunions ad hoc sous forme de réunions à distance","• Économique : Réduction des réunions en présence et meilleure visualisation, par exemple par la présentation de diapositives plutôt que par des appels téléphoniques. \n• Économique : L’informatisation des entreprises locataires est soutenue","Veuillez sélectionner",null,"Veuillez sélectionner",null,"Veuillez sélectionner","Veuillez sélectionner","Veuillez sélectionner","Veuillez sélectionner",0,"Veuillez sélectionner"]
[null,"Gestion","Communications","Norme de communication à l’échelle du parc. Éviter les différents protocoles de communication empêchant la communication directe entre les différents objets du parc, tels que la communication M2M ; sélection d’alternatives autorisées, telles que LoRaWAN au lieu de la 5G","• Gestion & économique : Fournir une norme pour les protocoles de communication qui soit valable pour l’ensemble du parc","Veuillez sélectionner",null,"Veuillez sélectionner",null,"Veuillez sélectionner","Veuillez sélectionner","Veuillez sélectionner","Veuillez sélectionner",0,"Veuillez sélectionner"]
[null,"Gestion","Communications","modèle 3D des actifs du parc industriel et des entreprises basé sur la photogrammétrie pour soutenir les activités de marketing et de planification de la direction du parc et des entreprises","• Visualisation de la situation actuelle et de l’impact des nouveaux projets afin de réduire les coûts de planification et d’augmenter l’attractivité du parc industriel","Veuillez sélectionner",null,"Veuillez sélectionner",null,"Veuillez sélectionner","Veuillez sélectionner","Veuillez sélectionner","Veuillez sélectionner",0,"Veuillez sélectionner"]
[null,"Gestion","Communications","l’application \"Industrial Park App\" comme plateforme d’information","• Informations générales, informations et messages actuels, ainsi que des alertes push envoyées aux ordinateurs de poche des travailleurs et des visiteurs\n• Social : Alertes push, informations sur l’accès pour les visiteurs, carte IP, itinéraire des camions, infrastructures sociales importantes telles que cantine, premiers soins, toilettes, contacts d’urgence, routes fermées, etc","Veuillez sélectionner",null,"Veuillez sélectionner",null,"Veuillez sélectionner","Veuillez sélectionner","Veuillez sélectionner","Veuillez sélectionner",{"$f":"(COUNTIF(J33:M33,\"High\")*3)+(COUNTIF(J33:M33,\"Medium\")*2)+(COUNTIF(J33:M33,\"Low\")*1)+(COUNTIF(J33:M33,\"To be confirmed\")*1.5)","v":0},"Veuillez sélectionner"]
[null,"Gestion","Données de masse","Fournir des applications de données de masse et d’IA pour l’analyse des données clés des entreprises telles que EMS- / EnMS ","• Économique : Services cloud partagés avec l’IA pour l’amélioration des processus, l’optimisation énergétique, l’amélioration de la performance environnementale\n• Environnemental : Optimisation énergétique, amélioration de la performance environnementale grâce à l’application partagée de l’IA","Veuillez sélectionner",null,"Veuillez sélectionner",null,"Veuillez sélectionner","Veuillez sélectionner","Veuillez sélectionner","Veuillez sélectionner",{"$f":"(COUNTIF(J34:M34,\"High\")*3)+(COUNTIF(J34:M34,\"Medium\")*2)+(COUNTIF(J34:M34,\"Low\")*1)+(COUNTIF(J34:M34,\"To be confirmed\")*1.5)","v":0},"Veuillez sélectionner"]
[null,"Gestion","Contrôle","Parc de surveillance et de contrôle avec drones et robots","• Gestion & Environnementale & Sociale & Économique : Les drones fournissent des informations qui ne sont pas disponibles au niveau du sol ou sur des événements qui se produisent à distance\n• Les drones et les robots constituent des moyens appropriés pour surveiller le périmètre d’un parc, contrôler les émissions ou l’impact sur l’environnement, les mouvements de camions et de personnes, ou observer une scène d’incident, comme un incendie ou un crime, afin d’étayer l’analyse de la situation & pour le commandant sur place","Veuillez sélectionner",null,"Veuillez sélectionner",null,"Veuillez sélectionner","Veuillez sélectionner","Veuillez sélectionner","Veuillez sélectionner",0,"Veuillez sélectionner"]
[null,"Gestion","Contrôle","Fournir des services de surveillance intelligente dans le parc industriel, notamment en ce qui concerne la qualité de l’air, le bruit, la qualité de l’eau et la circulation","• Augmentation de l’efficacité des ressources et des coûts \n• Des systèmes de contrôle précis en temps réel permettent d’améliorer la gestion et de prendre des mesures correctives le cas échéant","Veuillez sélectionner",null,"Veuillez sélectionner",null,"Veuillez sélectionner","Veuillez sélectionner","Veuillez sélectionner","Veuillez sélectionner",{"$f":"(COUNTIF(J36:M36,\"High\")*3)+(COUNTIF(J36:M36,\"Medium\")*2)+(COUNTIF(J36:M36,\"Low\")*1)+(COUNTIF(J36:M36,\"To be confirmed\")*1.5)","v":0},"Veuillez sélectionner"]
[null,"Personnes","Santé","Fournir des soins médicaux d’urgence à distance basés sur la RA (« télémédecine »)","• Social : Les premiers soins peuvent être prodigués à distance sans que les ambulanciers ou les médecins spécialistes des urgences soient présents sur les lieux ;\nen cas de pandémie de Covid-19 : le médecin peut donner les premiers soins sans être exposé au virus si des personnes de l’entreprise sont infectées","Veuillez sélectionner",null,"Veuillez sélectionner",null,"Veuillez sélectionner","Veuillez sélectionner","Veuillez sélectionner","Veuillez sélectionner",0,"Veuillez sélectionner"]
[null,"Personnes","Travailleurs et compétences","Mettre en place un centre de formation à l’industrie 4.0 avec une usine de formation intelligente ","• Social : Les travailleurs peuvent acquérir des connaissances de première main sur l’industrie 4.0 et obtenir les qualifications correspondantes, ce qui leur donne une meilleure position sur le marché du travail\n• Économique : Les technologies de l’industrie 4.0 ne sont pas seulement une question technique, mais nécessitent également de nouvelles compétences et connaissances. Le renforcement des capacités et la formation sont essentiels à ce processus de changement. L’usine d’apprentissage centrale décharge les entreprises de la charge de mener elles-mêmes des programmes de formation individuels","Veuillez sélectionner",null,"Veuillez sélectionner",null,"Veuillez sélectionner","Veuillez sélectionner","Veuillez sélectionner","Veuillez sélectionner",0,"Veuillez sélectionner"]
[null,"Personnes","Travailleurs et compétences","Mise en place d’un centre de formation à la RV/AR/MR pour la formation à des processus spécifiques, à des situations et à la conception du lieu de travail, à la télémaintenance, à la télémédecine, à l’école de conduite pour les machines lourdes  ","• Économique : AR pour les travailleurs de la maintenance avec des informations contextuelles (historique de la maintenance, vues éclatées) ; maquettes pour la formation et simulations génériques (par exemple, sécurité, sujets éducatifs) utilisées conjointement réduisant l’investissement individuel ; accès immédiat à la bonne information, ce qui signifie que les employés peuvent effectuer un travail de meilleure qualité en moins de temps, avec moins d’erreurs\n• Social : Les travailleurs acquièrent des qualifications plus élevées, même s’ils travaillent dans un environnement complexe ou dangereux ; la sécurité sur le lieu de travail est accrue","Veuillez sélectionner",null,"Veuillez sélectionner",null,"Veuillez sélectionner","Veuillez sélectionner","Veuillez sélectionner","Veuillez sélectionner",0,"Veuillez sélectionner"]
[null,"Personnes","Travailleurs et compétences","« Évaluation de la préparation à l’industrie 4.0 » et conseil en matière de modèle d’entreprise, fourniture de conseils pour introduire les concepts de parcs industriels intelligents dans les entreprises","• Économique : élaboration d’une feuille de route adaptée et spécifique pour la numérisation de l’entreprise résidente concernée ","Veuillez sélectionner",null,"Veuillez sélectionner",null,"Veuillez sélectionner","Veuillez sélectionner","Veuillez sélectionner","Veuillez sélectionner",0,"Veuillez sélectionner"]
[null,"Autres","Autres",null,null,"Veuillez sélectionner",null,"Veuillez sélectionner",null,"Veuillez sélectionner","Veuillez sélectionner","Veuillez sélectionner","Veuillez sélectionner",0,"Veuillez sélectionner"]
[null,"Autres","Autres",null,null,"Veuillez sélectionner",null,"Veuillez sélectionner",null,"Veuillez sélectionner","Veuillez sélectionner","Veuillez sélectionner","Veuillez sélectionner",0,"Veuillez sélectionner"]
[null,"Autres","Autres",null,null,"Veuillez sélectionner",null,"Veuillez sélectionner",null,"Veuillez sélectionner","Veuillez sélectionner","Veuillez sélectionner","Veuillez sélectionner",0,"Veuillez sélectionner"]

{"sheet":"3.Résumé","index":5,"n_rows":47,"n_cols":18,"rows_kept":47,"cut":false,"hidden":false,"merged":[[17,10,17,17],[17,1,17,8],[7,8,7,10],[8,8,8,10],[7,5,7,6],[8,5,8,6],[9,5,9,6],[10,5,10,6],[11,5,11,6],[12,5,12,6],[9,8,9,10],[10,8,10,10],[11,8,11,10],[12,8,12,10],[13,5,13,7],[13,8,13,11],[14,5,14,13],[7,1,7,2],[8,1,8,2],[9,1,9,2],[10,1,10,2],[11,1,11,2],[12,1,12,2],[1,1,3,3],[1,6,1,8],[2,6,2,8],[3,6,3,8],[13,12,13,13],[6,5,6,13],[7,3,12,3],[7,4,8,4],[9,4,10,4],[11,4,12,4]]}
[null,"Outil de services de gestion de PEI de l’ONUDI (V1)"]
[null,"RÉSUMÉ DES SERVICES À VALEUR AJOUTÉE SÉLECTIONNÉS POUR UNE ACTION À COURT TERME",null,null,null,"Nom du parc industriel :",{"$f":"'1.Défis et opportunités'!G2","v":"Insérer le nom du parc industriel"}]
[null,null,null,null,null,"Période d’évaluation :",{"$f":"'1.Défis et opportunités'!G3","v":"Insérer la date"}]
[null,null,null,null,null,"Nom des assesseurs :",{"$f":"'1.Défis et opportunités'!G4","v":"Insérer les noms"}]
[]
[]
[null,null,null,null,null,"PRIORISATION DES NOUVEAUX SERVICES DE GESTION DES PARCS ET DE L’INDUSTRIE 4.0 POUR UNE ACTION À COURT TERME"]
[null,"TOTAL DES NOUVEAUX SERVICES PROPOSÉS",null,"RÉALISABILITÉ","Élevée","Tout",null,{"$f":"COUNTIFS('3.Examiner les services de gest'!J12:J50,\"High\",'3.Examiner les services de gest'!K12:K50,\"Low\",'3.Examiner les services de gest'!O12:O50,\"Yes\")+COUNTIFS('3.Révision des services I4.0 (o'!J12:J43,\"High\",'3.Révision des services I4.0 (o'!K12:K43,\"Low\",'3.Révision des services I4.0 (o'!O12:O43,\"Yes\")","v":0},"Tout",null,null,{"$f":"COUNTIFS('3.Examiner les services de gest'!J12:J50,\"High\",'3.Examiner les services de gest'!K12:K50,\"Medium\",'3.Examiner les services de gest'!O12:O50,\"Yes\")+COUNTIFS('3.Révision des services I4.0 (o'!J12:J43,\"High\",'3.Révision des services I4.0 (o'!K12:K43,\"Medium\",'3.Révision des services I4.0 (o'!O12:O43,\"Yes\")","v":0},"Tout",{"$f":"COUNTIFS('3.Examiner les services de gest'!J12:J50,\"High\",'3.Examiner les services de gest'!K12:K50,\"High\",'3.Examiner les services de gest'!O12:O50,\"Yes\")+COUNTIFS('3.Révision des services I4.0 (o'!J12:J43,\"High\",'3.Révision des services I4.0 (o'!K12:K43,\"High\",'3.Révision des services I4.0 (o'!O12:O43,\"Yes\")","v":0}]
[null,{"$f":"B11+B13","v":0},null,null,null,"Intérêt élevé du parc \ngestion et locataires",null,{"$f":"COUNTIFS('3.Examiner les services de gest'!J12:J50,\"High\",'3.Examiner les services de gest'!K12:K50,\"Low\",'3.Examiner les services de gest'!L12:L50,\"High\",'3.Examiner les services de gest'!M12:M50,\"High\",'3.Examiner les services de gest'!O12:O50,\"Yes\")+COUNTIFS('3.Révision des services I4.0 (o'!J12:J43,\"High\",'3.Révision des services I4.0 (o'!K12:K43,\"Low\",'3.Révision des services I4.0 (o'!L12:L43,\"High\",'3.Révision des services I4.0 (o'!M12:M43,\"High\",'3.Révision des services I4.0 (o'!O12:O43,\"Yes\")","v":0},"Intérêt élevé du parc \ngestion et locataires",null,null,{"$f":"COUNTIFS('3.Examiner les services de gest'!J12:J50,\"High\",'3.Examiner les services de gest'!K12:K50,\"Medium\",'3.Examiner les services de gest'!L12:L50,\"High\",'3.Examiner les services de gest'!M12:M50,\"High\",'3.Examiner les services de gest'!O12:O50,\"Yes\")+COUNTIFS('3.Révision des services I4.0 (o'!J12:J43,\"High\",'3.Révision des services I4.0 (o'!K12:K43,\"Medium\",'3.Révision des services I4.0 (o'!L12:L43,\"High\",'3.Révision des services I4.0 (o'!M12:M43,\"High\",'3.Révision des services I4.0 (o'!O12:O43,\"Yes\")","v":0},"Intérêt élevé du parc \ngestion et locataires",{"$f":"COUNTIFS('3.Examiner les services de gest'!J12:J50,\"High\",'3.Examiner les services de gest'!K12:K50,\"High\",'3.Examiner les services de gest'!L12:L50,\"High\",'3.Examiner les services de gest'!M12:M50,\"High\",'3.Examiner les services de gest'!O12:O50,\"Yes\")+COUNTIFS('3.Révision des services I4.0 (o'!J12:J43,\"High\",'3.Révision des services I4.0 (o'!K12:K43,\"High\",'3.Révision des services I4.0 (o'!L12:L43,\"High\",'3.Révision des services I4.0 (o'!M12:M43,\"High\",'3.Révision des services I4.0 (o'!O12:O43,\"Yes\")","v":0}]
[null,"Total des nouveaux services de gestion des parcs pour une action à court terme :",null,null,"Moyenne","Tout",null,{"$f":"COUNTIFS('3.Examiner les services de gest'!J12:J50,\"Medium\",'3.Examiner les services de gest'!K12:K50,\"Low\",'3.Examiner les services de gest'!O12:O50,\"Yes\")+COUNTIFS('3.Révision des services I4.0 (o'!J12:J43,\"Medium\",'3.Révision des services I4.0 (o'!K12:K43,\"Low\",'3.Révision des services I4.0 (o'!O12:O43,\"Yes\")","v":0},"Tout",null,null,{"$f":"COUNTIFS('3.Examiner les services de gest'!J12:J50,\"Medium\",'3.Examiner les services de gest'!K12:K50,\"Medium\",'3.Examiner les services de gest'!O12:O50,\"Yes\")+COUNTIFS('3.Révision des services I4.0 (o'!J12:J43,\"Medium\",'3.Révision des services I4.0 (o'!K12:K43,\"Medium\",'3.Révision des services I4.0 (o'!O12:O43,\"Yes\")","v":0},"Tout",{"$f":"COUNTIFS('3.Examiner les services de gest'!J12:J50,\"Medium\",'3.Examiner les services de gest'!K12:K50,\"High\",'3.Examiner les services de gest'!O12:O50,\"Yes\")+COUNTIFS('3.Révision des services I4.0 (o'!J12:J43,\"Medium\",'3.Révision des services I4.0 (o'!K12:K43,\"High\",'3.Révision des services I4.0 (o'!O12:O43,\"Yes\")","v":0}]
[null,{"$f":"COUNTIF('3.Examiner les services de gest'!O12:O50,\"Yes\")","v":0},null,null,null,"Intérêt élevé du parc \ngestion et locataires",null,{"$f":"COUNTIFS('3.Examiner les services de gest'!J12:J50,\"Medium\",'3.Examiner les services de gest'!K12:K50,\"Low\",'3.Examiner les services de gest'!L12:L50,\"High\",'3.Examiner les services de gest'!M12:M50,\"High\",'3.Examiner les services de gest'!O12:O50,\"Yes\")+COUNTIFS('3.Révision des services I4.0 (o'!J12:J43,\"Medium\",'3.Révision des services I4.0 (o'!K12:K43,\"Low\",'3.Révision des services I4.0 (o'!L12:L43,\"High\",'3.Révision des services I4.0 (o'!M12:M43,\"High\",'3.Révision des services I4.0 (o'!O12:O43,\"Yes\")","v":0},"Intérêt élevé du parc \ngestion et locataires",null,null,{"$f":"COUNTIFS('3.Examiner les services de gest'!J12:J50,\"Medium\",'3.Examiner les services de gest'!K12:K50,\"Medium\",'3.Examiner les services de gest'!L12:L50,\"High\",'3.Examiner les services de gest'!M12:M50,\"High\",'3.Examiner les services de gest'!O12:O50,\"Yes\")+COUNTIFS('3.Révision des services I4.0 (o'!J12:J43,\"Medium\",'3.Révision des services I4.0 (o'!K12:K43,\"Medium\",'3.Révision des services I4.0 (o'!L12:L43,\"High\",'3.Révision des services I4.0 (o'!M12:M43,\"High\",'3.Révision des services I4.0 (o'!O12:O43,\"Yes\")","v":0},"Intérêt élevé du parc \ngestion et locataires",{"$f":"COUNTIFS('3.Examiner les services de gest'!J12:J50,\"Medium\",'3.Examiner les services de gest'!K12:K50,\"High\",'3.Examiner les services de gest'!L12:L50,\"High\",'3.Examiner les services de gest'!M12:M50,\"High\",'3.Examiner les services de gest'!O12:O50,\"Yes\")+COUNTIFS('3.Révision des services I4.0 (o'!J12:J43,\"Medium\",'3.Révision des services I4.0 (o'!K12:K43,\"High\",'3.Révision des services I4.0 (o'!L12:L43,\"High\",'3.Révision des services I4.0 (o'!M12:M43,\"High\",'3.Révision des services I4.0 (o'!O12:O43,\"Yes\")","v":0}]
[null,"Total des nouveaux services de l’industrie 4.0 pour une action à court terme :",null,null,"Faible","Tout",null,{"$f":"COUNTIFS('3.Examiner les services de gest'!J12:J50,\"Low\",'3.Examiner les services de gest'!K12:K50,\"Low\",'3.Examiner les services de gest'!O12:O50,\"Yes\")+COUNTIFS('3.Révision des services I4.0 (o'!J12:J43,\"Low\",'3.Révision des services I4.0 (o'!K12:K43,\"Low\",'3.Révision des services I4.0 (o'!O12:O43,\"Yes\")","v":0},"Tout",null,null,{"$f":"COUNTIFS('3.Examiner les services de gest'!J12:J50,\"Low\",'3.Examiner les services de gest'!K12:K50,\"Medium\",'3.Examiner les services de gest'!O12:O50,\"Yes\")+COUNTIFS('3.Révision des services I4.0 (o'!J12:J43,\"Low\",'3.Révision des services I4.0 (o'!K12:K43,\"Medium\",'3.Révision des services I4.0 (o'!O12:O43,\"Yes\")","v":0},"Tout",{"$f":"COUNTIFS('3.Examiner les services de gest'!J12:J50,\"Low\",'3.Examiner les services de gest'!K12:K50,\"High\",'3.Examiner les services de gest'!O12:O50,\"Yes\")+COUNTIFS('3.Révision des services I4.0 (o'!J12:J43,\"Low\",'3.Révision des services I4.0 (o'!K12:K43,\"High\",'3.Révision des services I4.0 (o'!O12:O43,\"Yes\")","v":0}]
[null,{"$f":"COUNTIF('3.Révision des services I4.0 (o'!O12:O43,\"Yes\")","v":0},null,null,null,"Intérêt élevé du parc \ngestion et locataires",null,{"$f":"COUNTIFS('3.Examiner les services de gest'!J12:J50,\"Low\",'3.Examiner les services de gest'!K12:K50,\"Low\",'3.Examiner les services de gest'!L12:L50,\"High\",'3.Examiner les services de gest'!M12:M50,\"High\",'3.Examiner les services de gest'!O12:O50,\"Yes\")+COUNTIFS('3.Révision des services I4.0 (o'!J12:J43,\"Low\",'3.Révision des services I4.0 (o'!K12:K43,\"Low\",'3.Révision des services I4.0 (o'!L12:L43,\"High\",'3.Révision des services I4.0 (o'!M12:M43,\"High\",'3.Révision des services I4.0 (o'!O12:O43,\"Yes\")","v":0},"Intérêt élevé du parc \ngestion et locataires",null,null,{"$f":"COUNTIFS('3.Examiner les services de gest'!J12:J50,\"Low\",'3.Examiner les services de gest'!K12:K50,\"Medium\",'3.Examiner les services de gest'!L12:L50,\"High\",'3.Examiner les services de gest'!M12:M50,\"High\",'3.Examiner les services de gest'!O12:O50,\"Yes\")+COUNTIFS('3.Révision des services I4.0 (o'!J12:J43,\"Low\",'3.Révision des services I4.0 (o'!K12:K43,\"Medium\",'3.Révision des services I4.0 (o'!L12:L43,\"High\",'3.Révision des services I4.0 (o'!M12:M43,\"High\",'3.Révision des services I4.0 (o'!O12:O43,\"Yes\")","v":0},"Intérêt élevé du parc \ngestion et locataires",{"$f":"COUNTIFS('3.Examiner les services de gest'!J12:J50,\"Low\",'3.Examiner les services de gest'!K12:K50,\"High\",'3.Examiner les services de gest'!L12:L50,\"High\",'3.Examiner les services de gest'!M12:M50,\"High\",'3.Examiner les services de gest'!O12:O50,\"Yes\")+COUNTIFS('3.Examiner les services de gest'!J12:J39,\"Low\",'3.Examiner les services de gest'!K12:K39,\"High\",'3.Examiner les services de gest'!L12:L39,\"High\",'3.Examiner les services de gest'!M12:M39,\"High\",'3.Révision des services I4.0 (o'!O12:O43,\"Yes\")","v":{"$error":"#VALUE!"}}]
[null,null,null,null,null,"Faible",null,null,"Moyenne",null,null,null,"Élevée"]
[null,null,null,null,null,"AVANTAGES"]
[]
[]
[null,"Proposition de nouveaux services de gestion de parcs à valeur ajoutée",null,null,null,null,null,null,null,null,"Nouveaux services proposés pour l’industrie 4.0"]
[]
[]
[]
[]
[]
[]
[]
[]
[]
[]
[null,"Principale catégorie de services","Sous-catégorie","Définition d’un nouveau service à valeur ajoutée pour votre parc industriel","Réalisabilité probable du service ?","Avantages probables du service ?","INTÉRÊT pour la gestion des parcs ?","Intéresser les entreprises locataires ?","SCORE de hiérarchisation",null,"Principale catégorie de services","Sous-catégorie","Définition d’un nouveau service Industrie 4.0 pour votre parc industriel","Réalisabilité probable du service ?","Avantages probables du service ?","INTÉRÊT pour la gestion des parcs ?","Intéresser les entreprises locataires ?","SCORE de hiérarchisation"]
[null,"Soutien aux entreprises","Développement commercial et marketing","(vide)","Veuillez sélectionner","Veuillez sélectionner","Veuillez sélectionner","Veuillez sélectionner",0,null,"Soutien aux entreprises","Centres de services, mise en réseau et regroupement","(vide)","Veuillez sélectionner","Veuillez sélectionner","Veuillez sélectionner","Veuillez sélectionner",0]
[null,"Soutien aux entreprises","Finance et banque","(vide)","Veuillez sélectionner","Veuillez sélectionner","Veuillez sélectionner","Veuillez sélectionner",0,null,"Environnement","Énergie","(vide)","Veuillez sélectionner","Veuillez sélectionner","Veuillez sélectionner","Veuillez sélectionner",0]
[null,"Soutien aux entreprises","Autorités gouvernementales","(vide)","Veuillez sélectionner","Veuillez sélectionner","Veuillez sélectionner","Veuillez sélectionner",0,null,"Environnement","Déchets","(vide)","Veuillez sélectionner","Veuillez sélectionner","Veuillez sélectionner","Veuillez sélectionner",0]
[null,"Soutien aux entreprises","Marchés publics","(vide)","Veuillez sélectionner","Veuillez sélectionner","Veuillez sélectionner","Veuillez sélectionner",0,null,"Environnement","Eau","(vide)","Veuillez sélectionner","Veuillez sélectionner","Veuillez sélectionner","Veuillez sélectionner",0]
[null,"Soutien aux entreprises","Recherche & Développement (R&D)","(vide)","Veuillez sélectionner","Veuillez sélectionner","Veuillez sélectionner","Veuillez sélectionner",0,null,"Infrastructure et services publics","Bâtiments","(vide)","Veuillez sélectionner","Veuillez sélectionner","Veuillez sélectionner","Veuillez sélectionner",0]
[null,"Collaboration","Communauté","(vide)","Veuillez sélectionner","Veuillez sélectionner","Veuillez sélectionner","Veuillez sélectionner",0,null,"Infrastructure et services publics","Sécurité","(vide)","Veuillez sélectionner","Veuillez sélectionner","Veuillez sélectionner","Veuillez sélectionner",0]
[null,"Collaboration","Comités des sociétés de locataires","(vide)","Veuillez sélectionner","Veuillez sélectionner","Veuillez sélectionner","Veuillez sélectionner",0,null,"Infrastructure et services publics","Transport","(vide)","Veuillez sélectionner","Veuillez sélectionner","Veuillez sélectionner","Veuillez sélectionner",0]
[null,"Environnement","Énergie","(vide)","Veuillez sélectionner","Veuillez sélectionner","Veuillez sélectionner","Veuillez sélectionner",0,null,"Infrastructure et services publics","Infrastructure","(vide)","Veuillez sélectionner","Veuillez sélectionner","Veuillez sélectionner","Veuillez sélectionner",0]
[null,"Environnement","Efficacité des ressources","(vide)","Veuillez sélectionner","Veuillez sélectionner","Veuillez sélectionner","Veuillez sélectionner",0,null,"Infrastructure et services publics","Maintenance","(vide)","Veuillez sélectionner","Veuillez sélectionner","Veuillez sélectionner","Veuillez sélectionner",0]
[null,"Environnement","Déchets","(vide)","Veuillez sélectionner","Veuillez sélectionner","Veuillez sélectionner","Veuillez sélectionner",0,null,"Gestion","Communications","(vide)","Veuillez sélectionner","Veuillez sélectionner","Veuillez sélectionner","Veuillez sélectionner",0]
[null,"Environnement","Eau","(vide)","Veuillez sélectionner","Veuillez sélectionner","Veuillez sélectionner","Veuillez sélectionner",0,null,"Gestion","Données de masse","(vide)","Veuillez sélectionner","Veuillez sélectionner","Veuillez sélectionner","Veuillez sélectionner",0]
[null,"Infrastructure et services publics","Bâtiments","(vide)","Veuillez sélectionner","Veuillez sélectionner","Veuillez sélectionner","Veuillez sélectionner",0,null,"Gestion","Contrôle","(vide)","Veuillez sélectionner","Veuillez sélectionner","Veuillez sélectionner","Veuillez sélectionner",0]
[null,"Infrastructure et services publics","Sécurité","(vide)","Veuillez sélectionner","Veuillez sélectionner","Veuillez sélectionner","Veuillez sélectionner",0,null,"Autres","Autres","(vide)","Veuillez sélectionner","Veuillez sélectionner","Veuillez sélectionner","Veuillez sélectionner",0]
[null,"Infrastructure et services publics","Transport","(vide)","Veuillez sélectionner","Veuillez sélectionner","Veuillez sélectionner","Veuillez sélectionner",0,null,"Personnes","Santé","(vide)","Veuillez sélectionner","Veuillez sélectionner","Veuillez sélectionner","Veuillez sélectionner",0]
[null,"Gestion","Surveillance et systèmes","(vide)","Veuillez sélectionner","Veuillez sélectionner","Veuillez sélectionner","Veuillez sélectionner",0,null,"Personnes","Travailleurs et compétences","(vide)","Veuillez sélectionner","Veuillez sélectionner","Veuillez sélectionner","Veuillez sélectionner",0]
[null,"Autres","Autres","(vide)","Veuillez sélectionner","Veuillez sélectionner","Veuillez sélectionner","Veuillez sélectionner",0]
[null,"Personnes","Santé","(vide)","Veuillez sélectionner","Veuillez sélectionner","Veuillez sélectionner","Veuillez sélectionner",0]
[null,"Personnes","Travailleurs et compétences","(vide)","Veuillez sélectionner","Veuillez sélectionner","Veuillez sélectionner","Veuillez sélectionner",0]

{"sheet":"4.Services de portée","index":6,"n_rows":10,"n_cols":13,"rows_kept":10,"cut":false,"hidden":false,"merged":[[6,1,6,9],[1,1,3,2],[8,12,9,12],[8,9,8,11],[8,6,8,8],[8,3,8,5]]}
[null,"Outil de services de gestion de PEI de l’ONUDI (V1)"]
[null,"CLASSEMENTPAR ORDRE DE PRIORITÉ DES CHAMPS D’APPLICATION\nSERVICES À VALEUR AJOUTÉE",null,null,"Nom du parc industriel :",{"$f":"'1.Défis et opportunités'!G2","v":"Insérer le nom du parc industriel"}]
[null,null,null,null,"Période d’évaluation :",{"$f":"'1.Défis et opportunités'!G3","v":"Insérer la date"}]
[null,null,null,null,"Nom des assesseurs :",{"$f":"'1.Défis et opportunités'!G4","v":"Insérer les noms"}]
[]
[]
[null,"Instruction : Pour faciliter leur développement, cette étape aide la direction du parc et les entreprises locataires à définir les services à valeur ajoutée prioritaires, y compris les options de partage des coûts/recettes et la mise en œuvre potentielle des services sélectionnés."]
[]
[null,null,null,"SPÉCIFICATION DU SERVICE À VALEUR AJOUTÉE",null,null,"PARTAGE DES COÛTS ET DES RECETTES",null,null,"MISE EN ŒUVRE",null,null,"Commentaires"]
[null,"Sujet","Services prioritaires de gestion des parcs à valeur ajoutée sélectionnés pour une action à court terme","Quelles sont les entreprises locataires ciblées pour le service à valeur ajoutée ?","Quelle est la proposition de valeur ?","Quels sont les domaines et les caractéristiques spécifiques à inclure dans les services à valeur ajoutée ?","Veuillez indiquer les coûts et les sources de revenus","Les services peuvent-ils être proposés dans le cadre des frais de gestion des parcs existants ?","Quelles sont les possibilités de recouvrement des coûts et/ou de partage des bénéfices ?","Quelles pourraient être les modalités de fourniture du service à valeur ajoutée ?\n(par exemple, par la gestion du parc, les locataires, une société spécialisée, l’externalisation)","Quels sont les facteurs de réussite pour développer et mettre en œuvre des services à valeur ajoutée ?","Quels sont les défis potentiels et les moyens de les relever ?"]

{"sheet":"5.Plan d’action","index":7,"n_rows":80,"n_cols":10,"rows_kept":80,"cut":false,"hidden":false,"merged":[[16,1,19,1],[16,2,19,2],[16,4,16,5],[17,4,17,5],[18,4,18,5],[19,4,19,5],[46,1,49,1],[66,1,69,1],[76,1,79,1],[76,2,79,2],[76,4,76,5],[77,4,77,5],[78,4,78,5],[79,4,79,5],[71,1,74,1],[71,2,74,2],[71,4,71,5],[72,4,72,5],[73,4,73,5],[74,4,74,5],[51,2,54,2],[66,2,69,2],[36,1,39,1],[36,2,39,2],[36,4,36,5],[37,4,37,5],[38,4,38,5],[39,4,39,5],[43,4,43,5],[47,4,47,5],[48,4,48,5],[49,4,49,5],[44,4,44,5],[1,6,1,7],[2,6,2,7],[3,6,3,7],[1,1,3,4],[42,4,42,5],[13,4,13,5],[14,4,14,5],[41,4,41,5],[31,4,31,5],[32,4,32,5],[33,4,33,5],[34,4,34,5],[6,1,6,9],[21,1,24,1],[21,2,24,2],[21,4,21,5],[8,9,9,9],[9,3,9,5],[8,1,9,1],[8,2,9,2],[8,3,8,8],[11,1,14,1],[11,2,14,2],[11,4,11,5],[12,4,12,5],[41,9,44,9],[22,4,22,5],[23,4,23,5],[24,4,24,5],[26,1,29,1],[26,2,29,2],[26,4,26,5],[27,4,27,5],[28,4,28,5],[29,4,29,5],[31,1,34,1],[31,2,34,2],[41,1,44,1],[61,1,64,1],[61,2,64,2],[61,4,61,5],[62,4,62,5],[63,4,63,5],[64,4,64,5],[51,1,54,1],[58,4,58,5],[59,4,59,5],[56,1,59,1],[56,2,59,2],[56,4,56,5],[46,4,46,5],[41,2,44,2],[46,2,49,2],[67,4,67,5],[68,4,68,5],[69,4,69,5],[57,4,57,5],[46,9,49,9],[51,4,51,5],[52,4,52,5],[53,4,53,5],[54,4,54,5],[66,4,66,5]]}
[null,"Outil de services de gestion de PEI de l’ONUDI (V1)"]
[null,"PLAN D’ACTION POUR LA GESTION DES PARCS À VALEUR AJOUTÉE ET LES SERVICES DE L’INDUSTRIE 4.0",null,null,null,"Nom du parc industriel :",{"$f":"'1.Défis et opportunités'!G2","v":"Insérer le nom du parc industriel"}]
[null,null,null,null,null,"Période d’évaluation :",{"$f":"'1.Défis et opportunités'!G3","v":"Insérer la date"}]
[null,null,null,null,null,"Nom des assesseurs :",{"$f":"'1.Défis et opportunités'!G4","v":"Insérer les noms"}]
[]
[]
[null,"Instruction : Après le cadrage des services à valeur ajoutée et de l’industrie 4.0 priorisés, cette étape guide la direction du parc et les entreprises locataires pour produire un plan pratique avec des actions à court terme pour développer et mettre en œuvre les services sélectionnés. Sachant que la direction du parc peut déjà avoir mis en place des systèmes pour gérer ses activités, il est envisagé d’adapter le plan d’action des services prioritaires aux systèmes existants."]
[]
[null,"Sujet","Services sélectionnés pour une action à court terme","ACTIONS",null,null,null,null,null,"Commentaires et progrès \nsur les actions"]
[null,null,null,"Actions clés à court terme",null,null,"Rôle principal","Rôle de soutien","Calendrier"]
[]
[null,null,null,"a."]
[null,null,null,"b."]
[null,null,null,"c."]
[null,null,null,"d."]
[]
[null,null,null,"a."]
[null,null,null,"b."]
[null,null,null,"c."]
[null,null,null,"d."]
[]
[null,null,null,"a."]
[null,null,null,"b."]
[null,null,null,"c."]
[null,null,null,"d."]
[]
[null,null,null,"a."]
[null,null,null,"b."]
[null,null,null,"c."]
[null,null,null,"d."]
[]
[null,null,null,"a."]
[null,null,null,"b."]
[null,null,null,"c."]
[null,null,null,"d."]
[]
[null,null,null,"a."]
[null,null,null,"b."]
[null,null,null,"c."]
[null,null,null,"d."]
[]
[null,null,null,"a."]
[null,null,null,"b."]
[null,null,null,"c."]
[null,null,null,"d."]
[]
[null,null,null,"a."]
[null,null,null,"b."]
[null,null,null,"c."]
[null,null,null,"d."]
[]
[null,null,null,"a."]
[null,null,null,"b."]
[null,null,null,"c."]
[null,null,null,"d."]
[]
[null,null,null,"a."]
[null,null,null,"b."]
[null,null,null,"c."]
[null,null,null,"d."]
[]
[null,null,null,"a."]
[null,null,null,"b."]
[null,null,null,"c."]
[null,null,null,"d."]
[]
[null,null,null,"a."]
[null,null,null,"b."]
[null,null,null,"c."]
[null,null,null,"d."]
[]
[null,null,null,"a."]
[null,null,null,"b."]
[null,null,null,"c."]
[null,null,null,"d."]
[]
[null,null,null,"a."]
[null,null,null,"b."]
[null,null,null,"c."]
[null,null,null,"d."]